Department,Entity,Date of Payment,Expense Type,Expense Area,Supplier,Transaction Number, Amount 
UK Trade and Investment Programme,UK Trade and Investment Programme,03/05/2011 ,Travel and Subsistence UK - Inward Investment Events,UK Trade & Investment - Business Group,NATIONAL INSTITUTE FOR HEALTH AND CLINICAL EXCELLENCE (NICE),146741, 45.82 
UK Trade and Investment Programme,UK Trade and Investment Programme,03/05/2011 ,Travel and Subsistence O'seas - Market Visit Scheme,UK Trade & Investment - Regional Directorate,BELVOIR CASTLE,146904, 450.00 
UK Trade and Investment Programme,UK Trade and Investment Programme,03/05/2011 ,Travel and Subsistence O'seas - Market Visit Scheme,UK Trade & Investment - Regional Directorate,GWE BUSINESS WEST LTD,146909, 200.00 
UK Trade and Investment Programme,UK Trade and Investment Programme,03/05/2011 ,Travel and Subsistence O'seas - Market Visit Scheme,UK Trade & Investment - Regional Directorate,GWE BUSINESS WEST LTD,146909, 600.00 
UK Trade and Investment Programme,UK Trade and Investment Programme,03/05/2011 ,Travel and Subsistence O'seas - Market Visit Scheme,UK Trade & Investment - Regional Directorate,GWE BUSINESS WEST LTD,146909, 600.00 
UK Trade and Investment Programme,UK Trade and Investment Programme,03/05/2011 ,Travel and Subsistence O'seas - Market Visit Scheme,UK Trade & Investment - Regional Directorate,GWE BUSINESS WEST LTD,146909, 750.00 
UK Trade and Investment Programme,UK Trade and Investment Programme,03/05/2011 ,Travel and Subsistence O'seas - Market Visit Scheme,UK Trade & Investment - Regional Directorate,GWE BUSINESS WEST LTD,146910, 500.00 
UK Trade and Investment Programme,UK Trade and Investment Programme,03/05/2011 ,Travel and Subsistence O'seas - Market Visit Scheme,UK Trade & Investment - Regional Directorate,GWE BUSINESS WEST LTD,146910, 750.00 
UK Trade and Investment Programme,UK Trade and Investment Programme,03/05/2011 ,Travel and Subsistence O'seas - Market Visit Scheme,UK Trade & Investment - Regional Directorate,GWE BUSINESS WEST LTD,146910, 750.00 
UK Trade and Investment Programme,UK Trade and Investment Programme,03/05/2011 ,Travel and Subsistence O'seas - Market Visit Scheme,UK Trade & Investment - Regional Directorate,GWE BUSINESS WEST LTD,146910, 500.00 
UK Trade and Investment Programme,UK Trade and Investment Programme,03/05/2011 ,Travel and Subsistence O'seas - Market Visit Scheme,UK Trade & Investment - Regional Directorate,GWE BUSINESS WEST LTD,146910, 450.00 
UK Trade and Investment Programme,UK Trade and Investment Programme,03/05/2011 ,Travel and Subsistence O'seas - Market Visit Scheme,UK Trade & Investment - Regional Directorate,GWE BUSINESS WEST LTD,146910, 500.00 
UK Trade and Investment Programme,UK Trade and Investment Programme,03/05/2011 ,Travel and Subsistence O'seas - Market Visit Scheme,UK Trade & Investment - Regional Directorate,GWE BUSINESS WEST LTD,146910, 200.00 
UK Trade and Investment Programme,UK Trade and Investment Programme,03/05/2011 ,Travel and Subsistence O'seas - Market Visit Scheme,UK Trade & Investment - Regional Directorate,EMTEC COLLEGES LTD,146922, 750.00 
UK Trade and Investment Programme,UK Trade and Investment Programme,03/05/2011 ,Travel and Subsistence O'seas - Market Visit Scheme,UK Trade & Investment - Regional Directorate,MASTERS PHARMACEUTICALS LTD,146980, 600.00 
UK Trade and Investment Programme,UK Trade and Investment Programme,03/05/2011 ,Online Services charges - Online,UK Trade & Investment - Marketing & Communications Group,S & S DATA LTD,146908, 302.08 
UK Trade and Investment Programme,UK Trade and Investment Programme,03/05/2011 ,Online Services charges - Online,UK Trade & Investment - Marketing & Communications Group,S & S DATA LTD,146908," 6,300.00 "
UK Trade and Investment Programme,UK Trade and Investment Programme,03/05/2011 ,Licenses and Copyright Agreements - Sector Events - UK,UK Trade & Investment - Sectors Group,EMI MUSIC PUBLISHING LTD,146911, 225.00 
UK Trade and Investment Programme,UK Trade and Investment Programme,03/05/2011 ,Event Management - Trade Development Support,UK Trade & Investment - International Group,COMPASS GROUP UK,146973, 352.92 
UK Trade and Investment Programme,UK Trade and Investment Programme,03/05/2011 ,Travel and Subsistence O'seas - Trade Marketing Events,UK Trade & Investment - Regional Directorate,BURRELL ARCHITECTS LTD,145985, 750.00 
UK Trade and Investment Programme,UK Trade and Investment Programme,03/05/2011 ,Basic Grants - Trade Show Access Programme,UK Trade & Investment - Sectors Group,ADS GROUP LTD,146975," 2,000.00 "
UK Trade and Investment Programme,UK Trade and Investment Programme,03/05/2011 ,Basic Grants - Trade Show Access Programme,UK Trade & Investment - Sectors Group,ENERGY INDUSTRIES COUNCIL,146978," 4,200.00 "
UK Trade and Investment Programme,UK Trade and Investment Programme,03/05/2011 ,Sponsors Grants - Trade Show Access Programme,UK Trade & Investment - Sectors Group,ADS GROUP LTD,146976, 480.00 
UK Trade and Investment Programme,UK Trade and Investment Programme,03/05/2011 ,Sponsors Grants - Trade Show Access Programme,UK Trade & Investment - Sectors Group,ENERGY INDUSTRIES COUNCIL,146977, 720.00 
UK Trade and Investment Programme,UK Trade and Investment Programme,04/05/2011 ,Travel and Subsistence O'seas - ,UK Trade & Investment - Defence and Security Organisation,FOREIGN AND COMMONWEALTH OFFICE (FCO),145657," 3,230.70 "
UK Trade and Investment Programme,UK Trade and Investment Programme,04/05/2011 ,Travel and Subsistence O'seas - ,UK Trade & Investment - Defence and Security Organisation,FOREIGN AND COMMONWEALTH OFFICE (FCO),145658, 598.34 
UK Trade and Investment Programme,UK Trade and Investment Programme,04/05/2011 ,Travel and Subsistence O'seas - ,UK Trade & Investment - Defence and Security Organisation,FOREIGN AND COMMONWEALTH OFFICE (FCO),145851, 99.94 
UK Trade and Investment Programme,UK Trade and Investment Programme,04/05/2011 ,Training - General - Gateway to Global Growth,UK Trade & Investment - Regional Directorate,University of Northumbria at Newcastle t/a Northumbria University,146852," 20,000.00 "
UK Trade and Investment Programme,UK Trade and Investment Programme,04/05/2011 ,Other Transportation Hire - Government 2 Government,UK Trade & Investment - Sectors Group,WINGS LUXURY TRAVEL LTD,147016, 740.00 
UK Trade and Investment Programme,UK Trade and Investment Programme,04/05/2011 ,Travel and Subsistence O'seas - Government 2 Government,UK Trade & Investment - Sectors Group,INTELLIGENT & GREEN SYSTEMS LTD,147020," 1,905.53 "
UK Trade and Investment Programme,UK Trade and Investment Programme,04/05/2011 ,Scheme Management Charges - International Trade Team Contracting,UK Trade & Investment - Regional Directorate,CHAMBERLINK LTD T/A BUSINESS SUPPORT SOLUTIONS,146989," 136,169.94 "
UK Trade and Investment Programme,UK Trade and Investment Programme,04/05/2011 ,Scheme Management Charges - International Trade Team Contracting,UK Trade & Investment - Regional Directorate,CHAMBERLINK LTD T/A BUSINESS SUPPORT SOLUTIONS,146989," 120,000.00 "
UK Trade and Investment Programme,UK Trade and Investment Programme,04/05/2011 ,Scheme Management Charges - International Trade Team Contracting,UK Trade & Investment - Regional Directorate,MEDILINK (YORKSHIRE AND HUMBER) LTD,147012," 7,535.00 "
UK Trade and Investment Programme,UK Trade and Investment Programme,04/05/2011 ,Event Management - Inward Investment Events,UK Trade & Investment - Business Group,FOREIGN AND COMMONWEALTH OFFICE (FCO),145744, 72.67 
UK Trade and Investment Programme,UK Trade and Investment Programme,04/05/2011 ,Event Management - Inward Investment Events,UK Trade & Investment - Business Group,FOREIGN AND COMMONWEALTH OFFICE (FCO),145745, 61.77 
UK Trade and Investment Programme,UK Trade and Investment Programme,04/05/2011 ,Authoring and Copywriting Costs - Inward Investment Publicity,UK Trade & Investment - Marketing & Communications Group,FOREIGN AND COMMONWEALTH OFFICE (FCO),145644," 3,626.72 "
UK Trade and Investment Programme,UK Trade and Investment Programme,04/05/2011 ,Authoring and Copywriting Costs - Inward Investment Publicity,UK Trade & Investment - Marketing & Communications Group,FOREIGN AND COMMONWEALTH OFFICE (FCO),145645," 1,178.68 "
UK Trade and Investment Programme,UK Trade and Investment Programme,04/05/2011 ,Authoring and Copywriting Costs - Inward Investment Publicity,UK Trade & Investment - Marketing & Communications Group,FOREIGN AND COMMONWEALTH OFFICE (FCO),145646, 125.04 
UK Trade and Investment Programme,UK Trade and Investment Programme,04/05/2011 ,Authoring and Copywriting Costs - Inward Investment Publicity,UK Trade & Investment - Marketing & Communications Group,FOREIGN AND COMMONWEALTH OFFICE (FCO),145649, 271.46 
UK Trade and Investment Programme,UK Trade and Investment Programme,04/05/2011 ,Authoring and Copywriting Costs - Inward Investment Publicity,UK Trade & Investment - Marketing & Communications Group,FOREIGN AND COMMONWEALTH OFFICE (FCO),145650, 129.16 
UK Trade and Investment Programme,UK Trade and Investment Programme,04/05/2011 ,Authoring and Copywriting Costs - Inward Investment Publicity,UK Trade & Investment - Marketing & Communications Group,FOREIGN AND COMMONWEALTH OFFICE (FCO),145709," 9,408.95 "
UK Trade and Investment Programme,UK Trade and Investment Programme,04/05/2011 ,Catering - Inward Investment Publicity,UK Trade & Investment - Marketing & Communications Group,FOREIGN AND COMMONWEALTH OFFICE (FCO),145706, 444.10 
UK Trade and Investment Programme,UK Trade and Investment Programme,04/05/2011 ,Design Services - Inward Investment Publicity,UK Trade & Investment - Marketing & Communications Group,FOREIGN AND COMMONWEALTH OFFICE (FCO),145715," 1,197.56 "
UK Trade and Investment Programme,UK Trade and Investment Programme,04/05/2011 ,Event Management - Inward Investment Publicity,UK Trade & Investment - Marketing & Communications Group,FOREIGN AND COMMONWEALTH OFFICE (FCO),145625, 491.98 
UK Trade and Investment Programme,UK Trade and Investment Programme,04/05/2011 ,Event Management - Inward Investment Publicity,UK Trade & Investment - Marketing & Communications Group,FOREIGN AND COMMONWEALTH OFFICE (FCO),145626, 41.73 
UK Trade and Investment Programme,UK Trade and Investment Programme,04/05/2011 ,Event Management - Inward Investment Publicity,UK Trade & Investment - Marketing & Communications Group,FOREIGN AND COMMONWEALTH OFFICE (FCO),145627, 19.90 
UK Trade and Investment Programme,UK Trade and Investment Programme,04/05/2011 ,Event Management - Inward Investment Publicity,UK Trade & Investment - Marketing & Communications Group,FOREIGN AND COMMONWEALTH OFFICE (FCO),145628, 30.56 
UK Trade and Investment Programme,UK Trade and Investment Programme,04/05/2011 ,Event Management - Inward Investment Publicity,UK Trade & Investment - Marketing & Communications Group,FOREIGN AND COMMONWEALTH OFFICE (FCO),145629, 139.01 
UK Trade and Investment Programme,UK Trade and Investment Programme,04/05/2011 ,Event Management - Inward Investment Publicity,UK Trade & Investment - Marketing & Communications Group,FOREIGN AND COMMONWEALTH OFFICE (FCO),145630, 240.48 
UK Trade and Investment Programme,UK Trade and Investment Programme,04/05/2011 ,Event Management - Inward Investment Publicity,UK Trade & Investment - Marketing & Communications Group,FOREIGN AND COMMONWEALTH OFFICE (FCO),145631, 183.66 
UK Trade and Investment Programme,UK Trade and Investment Programme,04/05/2011 ,Event Management - Inward Investment Publicity,UK Trade & Investment - Marketing & Communications Group,FOREIGN AND COMMONWEALTH OFFICE (FCO),145634, 25.64 
UK Trade and Investment Programme,UK Trade and Investment Programme,04/05/2011 ,Event Management - Inward Investment Publicity,UK Trade & Investment - Marketing & Communications Group,FOREIGN AND COMMONWEALTH OFFICE (FCO),145636, 578.09 
UK Trade and Investment Programme,UK Trade and Investment Programme,04/05/2011 ,Event Management - Inward Investment Publicity,UK Trade & Investment - Marketing & Communications Group,FOREIGN AND COMMONWEALTH OFFICE (FCO),145637, 173.77 
UK Trade and Investment Programme,UK Trade and Investment Programme,04/05/2011 ,Event Management - Inward Investment Publicity,UK Trade & Investment - Marketing & Communications Group,FOREIGN AND COMMONWEALTH OFFICE (FCO),145638," 4,973.41 "
UK Trade and Investment Programme,UK Trade and Investment Programme,04/05/2011 ,Event Management - Inward Investment Publicity,UK Trade & Investment - Marketing & Communications Group,FOREIGN AND COMMONWEALTH OFFICE (FCO),145638," (4,973.41)"
UK Trade and Investment Programme,UK Trade and Investment Programme,04/05/2011 ,Event Management - Inward Investment Publicity,UK Trade & Investment - Marketing & Communications Group,FOREIGN AND COMMONWEALTH OFFICE (FCO),145638," 4,983.41 "
UK Trade and Investment Programme,UK Trade and Investment Programme,04/05/2011 ,Event Management - Inward Investment Publicity,UK Trade & Investment - Marketing & Communications Group,FOREIGN AND COMMONWEALTH OFFICE (FCO),145639, 872.49 
UK Trade and Investment Programme,UK Trade and Investment Programme,04/05/2011 ,Event Management - Inward Investment Publicity,UK Trade & Investment - Marketing & Communications Group,FOREIGN AND COMMONWEALTH OFFICE (FCO),145640, 719.29 
UK Trade and Investment Programme,UK Trade and Investment Programme,04/05/2011 ,Event Management - Inward Investment Publicity,UK Trade & Investment - Marketing & Communications Group,FOREIGN AND COMMONWEALTH OFFICE (FCO),145697, 113.55 
UK Trade and Investment Programme,UK Trade and Investment Programme,04/05/2011 ,Event Management - Inward Investment Publicity,UK Trade & Investment - Marketing & Communications Group,FOREIGN AND COMMONWEALTH OFFICE (FCO),145708, 650.07 
UK Trade and Investment Programme,UK Trade and Investment Programme,04/05/2011 ,Event Management - Inward Investment Publicity,UK Trade & Investment - Marketing & Communications Group,FOREIGN AND COMMONWEALTH OFFICE (FCO),145712," 19,672.40 "
UK Trade and Investment Programme,UK Trade and Investment Programme,04/05/2011 ,Event Management - Inward Investment Publicity,UK Trade & Investment - Marketing & Communications Group,FOREIGN AND COMMONWEALTH OFFICE (FCO),145724, 386.09 
UK Trade and Investment Programme,UK Trade and Investment Programme,04/05/2011 ,Event Management - Inward Investment Publicity,UK Trade & Investment - Marketing & Communications Group,FOREIGN AND COMMONWEALTH OFFICE (FCO),145739, 272.55 
UK Trade and Investment Programme,UK Trade and Investment Programme,04/05/2011 ,Event Management - Inward Investment Publicity,UK Trade & Investment - Marketing & Communications Group,FOREIGN AND COMMONWEALTH OFFICE (FCO),145746, 712.31 
UK Trade and Investment Programme,UK Trade and Investment Programme,04/05/2011 ,Event Management - Inward Investment Publicity,UK Trade & Investment - Marketing & Communications Group,FOREIGN AND COMMONWEALTH OFFICE (FCO),145746, (712.31)
UK Trade and Investment Programme,UK Trade and Investment Programme,04/05/2011 ,Event Management - Inward Investment Publicity,UK Trade & Investment - Marketing & Communications Group,FOREIGN AND COMMONWEALTH OFFICE (FCO),145746, 712.31 
UK Trade and Investment Programme,UK Trade and Investment Programme,04/05/2011 ,Event Management - Inward Investment Publicity,UK Trade & Investment - Marketing & Communications Group,FOREIGN AND COMMONWEALTH OFFICE (FCO),145752, 71.23 
UK Trade and Investment Programme,UK Trade and Investment Programme,04/05/2011 ,Event Management - Inward Investment Publicity,UK Trade & Investment - Marketing & Communications Group,FOREIGN AND COMMONWEALTH OFFICE (FCO),145757, 72.37 
UK Trade and Investment Programme,UK Trade and Investment Programme,04/05/2011 ,Event Management - Inward Investment Publicity,UK Trade & Investment - Marketing & Communications Group,FOREIGN AND COMMONWEALTH OFFICE (FCO),145758, 852.54 
UK Trade and Investment Programme,UK Trade and Investment Programme,04/05/2011 ,Event Management - Inward Investment Publicity,UK Trade & Investment - Marketing & Communications Group,FOREIGN AND COMMONWEALTH OFFICE (FCO),145771, (194.59)
UK Trade and Investment Programme,UK Trade and Investment Programme,04/05/2011 ,Event Management - Inward Investment Publicity,UK Trade & Investment - Marketing & Communications Group,FOREIGN AND COMMONWEALTH OFFICE (FCO),145776, 734.96 
UK Trade and Investment Programme,UK Trade and Investment Programme,04/05/2011 ,Event Management - Inward Investment Publicity,UK Trade & Investment - Marketing & Communications Group,FOREIGN AND COMMONWEALTH OFFICE (FCO),145785, 761.24 
UK Trade and Investment Programme,UK Trade and Investment Programme,04/05/2011 ,Event Management - Inward Investment Publicity,UK Trade & Investment - Marketing & Communications Group,FOREIGN AND COMMONWEALTH OFFICE (FCO),145788, 182.70 
UK Trade and Investment Programme,UK Trade and Investment Programme,04/05/2011 ,Event Management - Inward Investment Publicity,UK Trade & Investment - Marketing & Communications Group,FOREIGN AND COMMONWEALTH OFFICE (FCO),145790," 1,096.18 "
UK Trade and Investment Programme,UK Trade and Investment Programme,04/05/2011 ,Event Management - Inward Investment Publicity,UK Trade & Investment - Marketing & Communications Group,FOREIGN AND COMMONWEALTH OFFICE (FCO),145791," 1,087.05 "
UK Trade and Investment Programme,UK Trade and Investment Programme,04/05/2011 ,Event Management - Inward Investment Publicity,UK Trade & Investment - Marketing & Communications Group,FOREIGN AND COMMONWEALTH OFFICE (FCO),145792, 252.05 
UK Trade and Investment Programme,UK Trade and Investment Programme,04/05/2011 ,Event Management - Inward Investment Publicity,UK Trade & Investment - Marketing & Communications Group,FOREIGN AND COMMONWEALTH OFFICE (FCO),145793," 2,258.02 "
UK Trade and Investment Programme,UK Trade and Investment Programme,04/05/2011 ,Event Management - Inward Investment Publicity,UK Trade & Investment - Marketing & Communications Group,FOREIGN AND COMMONWEALTH OFFICE (FCO),145794," 1,119.02 "
UK Trade and Investment Programme,UK Trade and Investment Programme,04/05/2011 ,Event Management - Inward Investment Publicity,UK Trade & Investment - Marketing & Communications Group,FOREIGN AND COMMONWEALTH OFFICE (FCO),145803, 513.68 
UK Trade and Investment Programme,UK Trade and Investment Programme,04/05/2011 ,Event Management - Inward Investment Publicity,UK Trade & Investment - Marketing & Communications Group,FOREIGN AND COMMONWEALTH OFFICE (FCO),145804, 895.10 
UK Trade and Investment Programme,UK Trade and Investment Programme,04/05/2011 ,Event Management - Inward Investment Publicity,UK Trade & Investment - Marketing & Communications Group,FOREIGN AND COMMONWEALTH OFFICE (FCO),145805," 1,191.75 "
UK Trade and Investment Programme,UK Trade and Investment Programme,04/05/2011 ,Event Management - Inward Investment Publicity,UK Trade & Investment - Marketing & Communications Group,FOREIGN AND COMMONWEALTH OFFICE (FCO),145806, 86.86 
UK Trade and Investment Programme,UK Trade and Investment Programme,04/05/2011 ,Event Management - Inward Investment Publicity,UK Trade & Investment - Marketing & Communications Group,FOREIGN AND COMMONWEALTH OFFICE (FCO),145806, (86.86)
UK Trade and Investment Programme,UK Trade and Investment Programme,04/05/2011 ,Event Management - Inward Investment Publicity,UK Trade & Investment - Marketing & Communications Group,FOREIGN AND COMMONWEALTH OFFICE (FCO),145806, 83.86 
UK Trade and Investment Programme,UK Trade and Investment Programme,04/05/2011 ,Event Management - Inward Investment Publicity,UK Trade & Investment - Marketing & Communications Group,FOREIGN AND COMMONWEALTH OFFICE (FCO),145809, 513.22 
UK Trade and Investment Programme,UK Trade and Investment Programme,04/05/2011 ,Event Management - Inward Investment Publicity,UK Trade & Investment - Marketing & Communications Group,FOREIGN AND COMMONWEALTH OFFICE (FCO),145810," 7,012.92 "
UK Trade and Investment Programme,UK Trade and Investment Programme,04/05/2011 ,Event Management - Inward Investment Publicity,UK Trade & Investment - Marketing & Communications Group,FOREIGN AND COMMONWEALTH OFFICE (FCO),145811, 375.00 
UK Trade and Investment Programme,UK Trade and Investment Programme,04/05/2011 ,Event Management - Inward Investment Publicity,UK Trade & Investment - Marketing & Communications Group,FOREIGN AND COMMONWEALTH OFFICE (FCO),145813, 375.00 
UK Trade and Investment Programme,UK Trade and Investment Programme,04/05/2011 ,Event Management - Inward Investment Publicity,UK Trade & Investment - Marketing & Communications Group,FOREIGN AND COMMONWEALTH OFFICE (FCO),145815, 500.00 
UK Trade and Investment Programme,UK Trade and Investment Programme,04/05/2011 ,Event Management - Inward Investment Publicity,UK Trade & Investment - Marketing & Communications Group,FOREIGN AND COMMONWEALTH OFFICE (FCO),145817, 500.00 
UK Trade and Investment Programme,UK Trade and Investment Programme,04/05/2011 ,Event Management - Inward Investment Publicity,UK Trade & Investment - Marketing & Communications Group,FOREIGN AND COMMONWEALTH OFFICE (FCO),145850, 858.91 
UK Trade and Investment Programme,UK Trade and Investment Programme,04/05/2011 ,Event Management - Inward Investment Publicity,UK Trade & Investment - Marketing & Communications Group,FOREIGN AND COMMONWEALTH OFFICE (FCO),145855, 99.34 
UK Trade and Investment Programme,UK Trade and Investment Programme,04/05/2011 ,Event Management - Inward Investment Publicity,UK Trade & Investment - Marketing & Communications Group,FOREIGN AND COMMONWEALTH OFFICE (FCO),145856, 138.55 
UK Trade and Investment Programme,UK Trade and Investment Programme,04/05/2011 ,Event Management - Inward Investment Publicity,UK Trade & Investment - Marketing & Communications Group,FOREIGN AND COMMONWEALTH OFFICE (FCO),145864, 522.91 
UK Trade and Investment Programme,UK Trade and Investment Programme,04/05/2011 ,Event Management - Inward Investment Publicity,UK Trade & Investment - Marketing & Communications Group,FOREIGN AND COMMONWEALTH OFFICE (FCO),145896," 4,355.40 "
UK Trade and Investment Programme,UK Trade and Investment Programme,04/05/2011 ,Event Management - Inward Investment Publicity,UK Trade & Investment - Marketing & Communications Group,FOREIGN AND COMMONWEALTH OFFICE (FCO),145899," 7,777.50 "
UK Trade and Investment Programme,UK Trade and Investment Programme,04/05/2011 ,Event Management - Inward Investment Publicity,UK Trade & Investment - Marketing & Communications Group,FOREIGN AND COMMONWEALTH OFFICE (FCO),145907, 15.55 
UK Trade and Investment Programme,UK Trade and Investment Programme,04/05/2011 ,Event Management - Inward Investment Publicity,UK Trade & Investment - Marketing & Communications Group,FOREIGN AND COMMONWEALTH OFFICE (FCO),145908, 715.22 
UK Trade and Investment Programme,UK Trade and Investment Programme,04/05/2011 ,Event Management - Inward Investment Publicity,UK Trade & Investment - Marketing & Communications Group,FOREIGN AND COMMONWEALTH OFFICE (FCO),145910, 777.75 
UK Trade and Investment Programme,UK Trade and Investment Programme,04/05/2011 ,Event Management - Inward Investment Publicity,UK Trade & Investment - Marketing & Communications Group,FOREIGN AND COMMONWEALTH OFFICE (FCO),145911," 1,116.85 "
UK Trade and Investment Programme,UK Trade and Investment Programme,04/05/2011 ,Event Management - Inward Investment Publicity,UK Trade & Investment - Marketing & Communications Group,FOREIGN AND COMMONWEALTH OFFICE (FCO),145912, 867.97 
UK Trade and Investment Programme,UK Trade and Investment Programme,04/05/2011 ,Event Management - Inward Investment Publicity,UK Trade & Investment - Marketing & Communications Group,FOREIGN AND COMMONWEALTH OFFICE (FCO),145913, 453.27 
UK Trade and Investment Programme,UK Trade and Investment Programme,04/05/2011 ,Event Management - Inward Investment Publicity,UK Trade & Investment - Marketing & Communications Group,FOREIGN AND COMMONWEALTH OFFICE (FCO),145914, 56.00 
UK Trade and Investment Programme,UK Trade and Investment Programme,04/05/2011 ,Event Management - Inward Investment Publicity,UK Trade & Investment - Marketing & Communications Group,FOREIGN AND COMMONWEALTH OFFICE (FCO),145915, 901.58 
UK Trade and Investment Programme,UK Trade and Investment Programme,04/05/2011 ,Event Management - Inward Investment Publicity,UK Trade & Investment - Marketing & Communications Group,FOREIGN AND COMMONWEALTH OFFICE (FCO),145916, 233.33 
UK Trade and Investment Programme,UK Trade and Investment Programme,04/05/2011 ,Event Management - Inward Investment Publicity,UK Trade & Investment - Marketing & Communications Group,FOREIGN AND COMMONWEALTH OFFICE (FCO),145926," 4,076.70 "
UK Trade and Investment Programme,UK Trade and Investment Programme,04/05/2011 ,Event Management - Inward Investment Publicity,UK Trade & Investment - Marketing & Communications Group,FOREIGN AND COMMONWEALTH OFFICE (FCO),145930, 625.31 
UK Trade and Investment Programme,UK Trade and Investment Programme,04/05/2011 ,Event Management - Inward Investment Publicity,UK Trade & Investment - Marketing & Communications Group,FOREIGN AND COMMONWEALTH OFFICE (FCO),145932, 871.08 
UK Trade and Investment Programme,UK Trade and Investment Programme,04/05/2011 ,Event Management - Inward Investment Publicity,UK Trade & Investment - Marketing & Communications Group,FOREIGN AND COMMONWEALTH OFFICE (FCO),145934," 3,718.08 "
UK Trade and Investment Programme,UK Trade and Investment Programme,04/05/2011 ,Event Management - Inward Investment Publicity,UK Trade & Investment - Marketing & Communications Group,FOREIGN AND COMMONWEALTH OFFICE (FCO),145935, 486.66 
UK Trade and Investment Programme,UK Trade and Investment Programme,04/05/2011 ,Event Management - Inward Investment Publicity,UK Trade & Investment - Marketing & Communications Group,FOREIGN AND COMMONWEALTH OFFICE (FCO),145935, (486.66)
UK Trade and Investment Programme,UK Trade and Investment Programme,04/05/2011 ,Event Management - Inward Investment Publicity,UK Trade & Investment - Marketing & Communications Group,FOREIGN AND COMMONWEALTH OFFICE (FCO),145935, 186.66 
UK Trade and Investment Programme,UK Trade and Investment Programme,04/05/2011 ,Event Management - Inward Investment Publicity,UK Trade & Investment - Marketing & Communications Group,FOREIGN AND COMMONWEALTH OFFICE (FCO),145936, 34.22 
UK Trade and Investment Programme,UK Trade and Investment Programme,04/05/2011 ,Event Management - Inward Investment Publicity,UK Trade & Investment - Marketing & Communications Group,FOREIGN AND COMMONWEALTH OFFICE (FCO),145937, 516.43 
UK Trade and Investment Programme,UK Trade and Investment Programme,04/05/2011 ,Event Management - Inward Investment Publicity,UK Trade & Investment - Marketing & Communications Group,FOREIGN AND COMMONWEALTH OFFICE (FCO),145946," 5,599.80 "
UK Trade and Investment Programme,UK Trade and Investment Programme,04/05/2011 ,Event Management - Inward Investment Publicity,UK Trade & Investment - Marketing & Communications Group,FOREIGN AND COMMONWEALTH OFFICE (FCO),146002," 2,924.54 "
UK Trade and Investment Programme,UK Trade and Investment Programme,04/05/2011 ,Event Management - Inward Investment Publicity,UK Trade & Investment - Marketing & Communications Group,FOREIGN AND COMMONWEALTH OFFICE (FCO),146004, 334.09 
UK Trade and Investment Programme,UK Trade and Investment Programme,04/05/2011 ,Media and Press Services - Inward Investment Publicity,UK Trade & Investment - Marketing & Communications Group,FOREIGN AND COMMONWEALTH OFFICE (FCO),145847," 1,244.32 "
UK Trade and Investment Programme,UK Trade and Investment Programme,04/05/2011 ,Media and Press Services - Inward Investment Publicity,UK Trade & Investment - Marketing & Communications Group,FOREIGN AND COMMONWEALTH OFFICE (FCO),145878, 249.53 
UK Trade and Investment Programme,UK Trade and Investment Programme,04/05/2011 ,Media and Press Services - Inward Investment Publicity,UK Trade & Investment - Marketing & Communications Group,FOREIGN AND COMMONWEALTH OFFICE (FCO),145879, 68.47 
UK Trade and Investment Programme,UK Trade and Investment Programme,04/05/2011 ,Media and Press Services - Inward Investment Publicity,UK Trade & Investment - Marketing & Communications Group,FOREIGN AND COMMONWEALTH OFFICE (FCO),145880, 37.64 
UK Trade and Investment Programme,UK Trade and Investment Programme,04/05/2011 ,Photographic Services - Inward Investment Publicity,UK Trade & Investment - Marketing & Communications Group,FOREIGN AND COMMONWEALTH OFFICE (FCO),145795, 279.99 
UK Trade and Investment Programme,UK Trade and Investment Programme,04/05/2011 ,Photographic Services - Inward Investment Publicity,UK Trade & Investment - Marketing & Communications Group,FOREIGN AND COMMONWEALTH OFFICE (FCO),145881, 241.35 
UK Trade and Investment Programme,UK Trade and Investment Programme,04/05/2011 ,Photographic Services - Inward Investment Publicity,UK Trade & Investment - Marketing & Communications Group,FOREIGN AND COMMONWEALTH OFFICE (FCO),145882, 15.39 
UK Trade and Investment Programme,UK Trade and Investment Programme,04/05/2011 ,Photographic Services - Inward Investment Publicity,UK Trade & Investment - Marketing & Communications Group,FOREIGN AND COMMONWEALTH OFFICE (FCO),145883, 0.03 
UK Trade and Investment Programme,UK Trade and Investment Programme,04/05/2011 ,Photographic Services - Inward Investment Publicity,UK Trade & Investment - Marketing & Communications Group,FOREIGN AND COMMONWEALTH OFFICE (FCO),145884, 16.94 
UK Trade and Investment Programme,UK Trade and Investment Programme,04/05/2011 ,Photographic Services - Inward Investment Publicity,UK Trade & Investment - Marketing & Communications Group,FOREIGN AND COMMONWEALTH OFFICE (FCO),145885, 474.12 
UK Trade and Investment Programme,UK Trade and Investment Programme,04/05/2011 ,Photographic Services - Inward Investment Publicity,UK Trade & Investment - Marketing & Communications Group,FOREIGN AND COMMONWEALTH OFFICE (FCO),145886, 36.39 
UK Trade and Investment Programme,UK Trade and Investment Programme,04/05/2011 ,Photographic Services - Inward Investment Publicity,UK Trade & Investment - Marketing & Communications Group,FOREIGN AND COMMONWEALTH OFFICE (FCO),145887," 7,351.79 "
UK Trade and Investment Programme,UK Trade and Investment Programme,04/05/2011 ,Photographic Services - Inward Investment Publicity,UK Trade & Investment - Marketing & Communications Group,FOREIGN AND COMMONWEALTH OFFICE (FCO),145888," 1,158.29 "
UK Trade and Investment Programme,UK Trade and Investment Programme,04/05/2011 ,Printing Costs - Inward Investment Publicity,UK Trade & Investment - Marketing & Communications Group,FOREIGN AND COMMONWEALTH OFFICE (FCO),145632," 2,554.97 "
UK Trade and Investment Programme,UK Trade and Investment Programme,04/05/2011 ,Printing Costs - Inward Investment Publicity,UK Trade & Investment - Marketing & Communications Group,FOREIGN AND COMMONWEALTH OFFICE (FCO),145682," 1,222.16 "
UK Trade and Investment Programme,UK Trade and Investment Programme,04/05/2011 ,Printing Costs - Inward Investment Publicity,UK Trade & Investment - Marketing & Communications Group,FOREIGN AND COMMONWEALTH OFFICE (FCO),145686, 948.49 
UK Trade and Investment Programme,UK Trade and Investment Programme,04/05/2011 ,Printing Costs - Inward Investment Publicity,UK Trade & Investment - Marketing & Communications Group,FOREIGN AND COMMONWEALTH OFFICE (FCO),145686, (948.49)
UK Trade and Investment Programme,UK Trade and Investment Programme,04/05/2011 ,Printing Costs - Inward Investment Publicity,UK Trade & Investment - Marketing & Communications Group,FOREIGN AND COMMONWEALTH OFFICE (FCO),145686, 948.49 
UK Trade and Investment Programme,UK Trade and Investment Programme,04/05/2011 ,Professional Subscriptions - Inward Investment Publicity,UK Trade & Investment - Marketing & Communications Group,FOREIGN AND COMMONWEALTH OFFICE (FCO),145707," 1,496.88 "
UK Trade and Investment Programme,UK Trade and Investment Programme,04/05/2011 ,Translation/Interpretation services - Inward Investment Publicity,UK Trade & Investment - Marketing & Communications Group,FOREIGN AND COMMONWEALTH OFFICE (FCO),145710, 163.68 
UK Trade and Investment Programme,UK Trade and Investment Programme,04/05/2011 ,Translation/Interpretation services - Inward Investment Publicity,UK Trade & Investment - Marketing & Communications Group,FOREIGN AND COMMONWEALTH OFFICE (FCO),145711, 716.11 
UK Trade and Investment Programme,UK Trade and Investment Programme,04/05/2011 ,Travel and Subsistence UK - Inward Investment Publicity,UK Trade & Investment - Marketing & Communications Group,FOREIGN AND COMMONWEALTH OFFICE (FCO),145816, (427.68)
UK Trade and Investment Programme,UK Trade and Investment Programme,04/05/2011 ,Travel and Subsistence UK - Inward Investment Publicity,UK Trade & Investment - Marketing & Communications Group,FOREIGN AND COMMONWEALTH OFFICE (FCO),145818, (427.68)
UK Trade and Investment Programme,UK Trade and Investment Programme,04/05/2011 ,Video Production Services - Inward Investment Publicity,UK Trade & Investment - Marketing & Communications Group,FOREIGN AND COMMONWEALTH OFFICE (FCO),145641, 476.19 
UK Trade and Investment Programme,UK Trade and Investment Programme,04/05/2011 ,Video Production Services - Inward Investment Publicity,UK Trade & Investment - Marketing & Communications Group,FOREIGN AND COMMONWEALTH OFFICE (FCO),145642, 83.07 
UK Trade and Investment Programme,UK Trade and Investment Programme,04/05/2011 ,Video Production Services - Inward Investment Publicity,UK Trade & Investment - Marketing & Communications Group,FOREIGN AND COMMONWEALTH OFFICE (FCO),145643, 474.47 
UK Trade and Investment Programme,UK Trade and Investment Programme,04/05/2011 ,Video Production Services - Inward Investment Publicity,UK Trade & Investment - Marketing & Communications Group,FOREIGN AND COMMONWEALTH OFFICE (FCO),145838," 1,380.89 "
UK Trade and Investment Programme,UK Trade and Investment Programme,04/05/2011 ,Video Production Services - Inward Investment Publicity,UK Trade & Investment - Marketing & Communications Group,FOREIGN AND COMMONWEALTH OFFICE (FCO),145949," 1,866.60 "
UK Trade and Investment Programme,UK Trade and Investment Programme,04/05/2011 ,Event Management - Market Visit Scheme,UK Trade & Investment - Regional Directorate,LONDON CHAMBER OF COMMERCE & INDUSTRY,146992," 2,500.00 "
UK Trade and Investment Programme,UK Trade and Investment Programme,04/05/2011 ,Travel and Subsistence O'seas - Market Visit Scheme,UK Trade & Investment - Regional Directorate,WEEDFREE LTD,146982, 330.00 
UK Trade and Investment Programme,UK Trade and Investment Programme,04/05/2011 ,Travel and Subsistence O'seas - Market Visit Scheme,UK Trade & Investment - Regional Directorate,WEEDFREE LTD,146982, 260.00 
UK Trade and Investment Programme,UK Trade and Investment Programme,04/05/2011 ,Travel and Subsistence O'seas - Market Visit Scheme,UK Trade & Investment - Regional Directorate,COVENTRY & WARWICKSHIRE CHAMBER OF COMMERCE,146985," 7,700.00 "
UK Trade and Investment Programme,UK Trade and Investment Programme,04/05/2011 ,Travel and Subsistence O'seas - Market Visit Scheme,UK Trade & Investment - Regional Directorate,COVENTRY & WARWICKSHIRE CHAMBER OF COMMERCE,146986," 1,396.33 "
UK Trade and Investment Programme,UK Trade and Investment Programme,04/05/2011 ,Travel and Subsistence O'seas - Market Visit Scheme,UK Trade & Investment - Regional Directorate,THE ANGLE RING CO LTD,146987, 200.00 
UK Trade and Investment Programme,UK Trade and Investment Programme,04/05/2011 ,Travel and Subsistence O'seas - Market Visit Scheme,UK Trade & Investment - Regional Directorate,MONITOR AUDIO LTD,146990, 450.00 
UK Trade and Investment Programme,UK Trade and Investment Programme,04/05/2011 ,Travel and Subsistence O'seas - Market Visit Scheme,UK Trade & Investment - Regional Directorate,MONITOR AUDIO LTD,146990, 40.00 
UK Trade and Investment Programme,UK Trade and Investment Programme,04/05/2011 ,Travel and Subsistence O'seas - Market Visit Scheme,UK Trade & Investment - Regional Directorate,MONITOR AUDIO LTD,146990, 200.00 
UK Trade and Investment Programme,UK Trade and Investment Programme,04/05/2011 ,Travel and Subsistence O'seas - Market Visit Scheme,UK Trade & Investment - Regional Directorate,GAMES EDUCATION LTD,146993, 500.00 
UK Trade and Investment Programme,UK Trade and Investment Programme,04/05/2011 ,Travel and Subsistence O'seas - Market Visit Scheme,UK Trade & Investment - Regional Directorate,LONDON CHAMBER OF COMMERCE & INDUSTRY,146994," 3,900.00 "
UK Trade and Investment Programme,UK Trade and Investment Programme,04/05/2011 ,Travel and Subsistence O'seas - Market Visit Scheme,UK Trade & Investment - Regional Directorate,TURBINE EFFICIENCY  LTD,146996, 550.00 
UK Trade and Investment Programme,UK Trade and Investment Programme,04/05/2011 ,Travel and Subsistence O'seas - Market Visit Scheme,UK Trade & Investment - Regional Directorate,YORK ASSOCIATES INTERNATIONAL LTD,147002, 795.00 
UK Trade and Investment Programme,UK Trade and Investment Programme,04/05/2011 ,Travel and Subsistence O'seas - Market Visit Scheme,UK Trade & Investment - Regional Directorate,EDUTEQ LTD,147011, 325.00 
UK Trade and Investment Programme,UK Trade and Investment Programme,04/05/2011 ,Event Management - Markets Fund,UK Trade & Investment - International Group,FOREIGN AND COMMONWEALTH OFFICE (FCO),145633, 249.76 
UK Trade and Investment Programme,UK Trade and Investment Programme,04/05/2011 ,Event Management - Markets Fund,UK Trade & Investment - International Group,FOREIGN AND COMMONWEALTH OFFICE (FCO),145635, 246.34 
UK Trade and Investment Programme,UK Trade and Investment Programme,04/05/2011 ,Event Management - Markets Fund,UK Trade & Investment - International Group,FOREIGN AND COMMONWEALTH OFFICE (FCO),145635, (246.34)
UK Trade and Investment Programme,UK Trade and Investment Programme,04/05/2011 ,Event Management - Markets Fund,UK Trade & Investment - International Group,FOREIGN AND COMMONWEALTH OFFICE (FCO),145635, 246.34 
UK Trade and Investment Programme,UK Trade and Investment Programme,04/05/2011 ,Event Management - Markets Fund,UK Trade & Investment - International Group,FOREIGN AND COMMONWEALTH OFFICE (FCO),145692, 200.61 
UK Trade and Investment Programme,UK Trade and Investment Programme,04/05/2011 ,Event Management - Markets Fund,UK Trade & Investment - International Group,FOREIGN AND COMMONWEALTH OFFICE (FCO),145704, 47.04 
UK Trade and Investment Programme,UK Trade and Investment Programme,04/05/2011 ,Event Management - Markets Fund,UK Trade & Investment - International Group,FOREIGN AND COMMONWEALTH OFFICE (FCO),145705, 443.24 
UK Trade and Investment Programme,UK Trade and Investment Programme,04/05/2011 ,Event Management - Markets Fund,UK Trade & Investment - International Group,FOREIGN AND COMMONWEALTH OFFICE (FCO),145713, 798.37 
UK Trade and Investment Programme,UK Trade and Investment Programme,04/05/2011 ,Event Management - Markets Fund,UK Trade & Investment - International Group,FOREIGN AND COMMONWEALTH OFFICE (FCO),145722, 145.37 
UK Trade and Investment Programme,UK Trade and Investment Programme,04/05/2011 ,Event Management - Markets Fund,UK Trade & Investment - International Group,FOREIGN AND COMMONWEALTH OFFICE (FCO),145779, 487.79 
UK Trade and Investment Programme,UK Trade and Investment Programme,04/05/2011 ,Event Management - Markets Fund,UK Trade & Investment - International Group,FOREIGN AND COMMONWEALTH OFFICE (FCO),145780, 697.64 
UK Trade and Investment Programme,UK Trade and Investment Programme,04/05/2011 ,Event Management - Markets Fund,UK Trade & Investment - International Group,FOREIGN AND COMMONWEALTH OFFICE (FCO),145781, 620.56 
UK Trade and Investment Programme,UK Trade and Investment Programme,04/05/2011 ,Event Management - Markets Fund,UK Trade & Investment - International Group,FOREIGN AND COMMONWEALTH OFFICE (FCO),145782, 341.54 
UK Trade and Investment Programme,UK Trade and Investment Programme,04/05/2011 ,Event Management - Markets Fund,UK Trade & Investment - International Group,FOREIGN AND COMMONWEALTH OFFICE (FCO),145783, 71.48 
UK Trade and Investment Programme,UK Trade and Investment Programme,04/05/2011 ,Event Management - Markets Fund,UK Trade & Investment - International Group,FOREIGN AND COMMONWEALTH OFFICE (FCO),145796, 248.63 
UK Trade and Investment Programme,UK Trade and Investment Programme,04/05/2011 ,Event Management - Markets Fund,UK Trade & Investment - International Group,FOREIGN AND COMMONWEALTH OFFICE (FCO),145798, 260.70 
UK Trade and Investment Programme,UK Trade and Investment Programme,04/05/2011 ,Event Management - Markets Fund,UK Trade & Investment - International Group,FOREIGN AND COMMONWEALTH OFFICE (FCO),145819, 500.00 
UK Trade and Investment Programme,UK Trade and Investment Programme,04/05/2011 ,Event Management - Markets Fund,UK Trade & Investment - International Group,FOREIGN AND COMMONWEALTH OFFICE (FCO),145833, 120.77 
UK Trade and Investment Programme,UK Trade and Investment Programme,04/05/2011 ,Event Management - Markets Fund,UK Trade & Investment - International Group,FOREIGN AND COMMONWEALTH OFFICE (FCO),145834, 120.77 
UK Trade and Investment Programme,UK Trade and Investment Programme,04/05/2011 ,Event Management - Markets Fund,UK Trade & Investment - International Group,FOREIGN AND COMMONWEALTH OFFICE (FCO),145835, 120.77 
UK Trade and Investment Programme,UK Trade and Investment Programme,04/05/2011 ,Event Management - Markets Fund,UK Trade & Investment - International Group,FOREIGN AND COMMONWEALTH OFFICE (FCO),145836, 241.53 
UK Trade and Investment Programme,UK Trade and Investment Programme,04/05/2011 ,Event Management - Markets Fund,UK Trade & Investment - International Group,FOREIGN AND COMMONWEALTH OFFICE (FCO),145837, 120.77 
UK Trade and Investment Programme,UK Trade and Investment Programme,04/05/2011 ,Event Management - Ministerial Events,UK Trade & Investment - International Group,FOREIGN AND COMMONWEALTH OFFICE (FCO),145762, 546.77 
UK Trade and Investment Programme,UK Trade and Investment Programme,04/05/2011 ,Event Management - NINJ Sector Events Abroad,UK Trade & Investment - International Group,FOREIGN AND COMMONWEALTH OFFICE (FCO),145725, 439.82 
UK Trade and Investment Programme,UK Trade and Investment Programme,04/05/2011 ,Event Management - NINJ Sector Events Abroad,UK Trade & Investment - International Group,FOREIGN AND COMMONWEALTH OFFICE (FCO),145727, 480.46 
UK Trade and Investment Programme,UK Trade and Investment Programme,04/05/2011 ,Event Management - NINJ Sector Events Abroad,UK Trade & Investment - International Group,FOREIGN AND COMMONWEALTH OFFICE (FCO),145729, 5.44 
UK Trade and Investment Programme,UK Trade and Investment Programme,04/05/2011 ,Event Management - NINJ Sector Events Abroad,UK Trade & Investment - International Group,FOREIGN AND COMMONWEALTH OFFICE (FCO),145730, 330.94 
UK Trade and Investment Programme,UK Trade and Investment Programme,04/05/2011 ,Event Management - NINJ Sector Events Abroad,UK Trade & Investment - International Group,FOREIGN AND COMMONWEALTH OFFICE (FCO),145738," 6,702.33 "
UK Trade and Investment Programme,UK Trade and Investment Programme,04/05/2011 ,Event Management - NINJ Sector Events Abroad,UK Trade & Investment - International Group,FOREIGN AND COMMONWEALTH OFFICE (FCO),145749, 82.02 
UK Trade and Investment Programme,UK Trade and Investment Programme,04/05/2011 ,Event Management - NINJ Sector Events Abroad,UK Trade & Investment - International Group,FOREIGN AND COMMONWEALTH OFFICE (FCO),145753, 19.22 
UK Trade and Investment Programme,UK Trade and Investment Programme,04/05/2011 ,Event Management - NINJ Sector Events Abroad,UK Trade & Investment - International Group,FOREIGN AND COMMONWEALTH OFFICE (FCO),145756, 514.81 
UK Trade and Investment Programme,UK Trade and Investment Programme,04/05/2011 ,Event Management - NINJ Sector Events Abroad,UK Trade & Investment - International Group,FOREIGN AND COMMONWEALTH OFFICE (FCO),145777," 4,000.20 "
UK Trade and Investment Programme,UK Trade and Investment Programme,04/05/2011 ,Event Management - NINJ Sector Events Abroad,UK Trade & Investment - International Group,FOREIGN AND COMMONWEALTH OFFICE (FCO),145778," 4,032.18 "
UK Trade and Investment Programme,UK Trade and Investment Programme,04/05/2011 ,Event Management - NINJ Sector Events Abroad,UK Trade & Investment - Strategy and Human Resources Group,FOREIGN AND COMMONWEALTH OFFICE (FCO),145820, 700.00 
UK Trade and Investment Programme,UK Trade and Investment Programme,04/05/2011 ,Event Management - NINJ Sector Events Abroad,UK Trade & Investment - Strategy and Human Resources Group,FOREIGN AND COMMONWEALTH OFFICE (FCO),145821," 1,700.00 "
UK Trade and Investment Programme,UK Trade and Investment Programme,04/05/2011 ,Event Management - NINJ Sector Events Abroad,UK Trade & Investment - Strategy and Human Resources Group,FOREIGN AND COMMONWEALTH OFFICE (FCO),145822, 300.00 
UK Trade and Investment Programme,UK Trade and Investment Programme,04/05/2011 ,Travel and Subsistence O'seas - NINJ Sector Events Abroad,UK Trade & Investment - Strategy and Human Resources Group,FOREIGN AND COMMONWEALTH OFFICE (FCO),145700," 6,300.00 "
UK Trade and Investment Programme,UK Trade and Investment Programme,04/05/2011 ,Event Management - Outward missions,UK Trade & Investment - Sectors Group,FOREIGN AND COMMONWEALTH OFFICE (FCO),145694," 1,008.02 "
UK Trade and Investment Programme,UK Trade and Investment Programme,04/05/2011 ,Event Management - Outward missions,UK Trade & Investment - Sectors Group,FOREIGN AND COMMONWEALTH OFFICE (FCO),145694, 407.23 
UK Trade and Investment Programme,UK Trade and Investment Programme,04/05/2011 ,Event Management - Outward missions,UK Trade & Investment - Sectors Group,FOREIGN AND COMMONWEALTH OFFICE (FCO),145726, 192.19 
UK Trade and Investment Programme,UK Trade and Investment Programme,04/05/2011 ,Event Management - Outward missions,UK Trade & Investment - Sectors Group,FOREIGN AND COMMONWEALTH OFFICE (FCO),145733, 256.13 
UK Trade and Investment Programme,UK Trade and Investment Programme,04/05/2011 ,Event Management - Outward missions,UK Trade & Investment - Sectors Group,FOREIGN AND COMMONWEALTH OFFICE (FCO),145750, 28.37 
UK Trade and Investment Programme,UK Trade and Investment Programme,04/05/2011 ,Event Management - Outward missions,UK Trade & Investment - Sectors Group,FOREIGN AND COMMONWEALTH OFFICE (FCO),145759, 225.57 
UK Trade and Investment Programme,UK Trade and Investment Programme,04/05/2011 ,Event Management - Outward missions,UK Trade & Investment - Sectors Group,FOREIGN AND COMMONWEALTH OFFICE (FCO),145760, 194.96 
UK Trade and Investment Programme,UK Trade and Investment Programme,04/05/2011 ,Event Management - Outward missions,UK Trade & Investment - Sectors Group,FOREIGN AND COMMONWEALTH OFFICE (FCO),145766, 174.24 
UK Trade and Investment Programme,UK Trade and Investment Programme,04/05/2011 ,Event Management - Outward missions,UK Trade & Investment - Sectors Group,FOREIGN AND COMMONWEALTH OFFICE (FCO),145769, 41.88 
UK Trade and Investment Programme,UK Trade and Investment Programme,04/05/2011 ,Event Management - Outward missions,UK Trade & Investment - Sectors Group,FOREIGN AND COMMONWEALTH OFFICE (FCO),145770, 24.04 
UK Trade and Investment Programme,UK Trade and Investment Programme,04/05/2011 ,Event Management - Outward missions,UK Trade & Investment - Sectors Group,FOREIGN AND COMMONWEALTH OFFICE (FCO),145784, 10.43 
UK Trade and Investment Programme,UK Trade and Investment Programme,04/05/2011 ,Event Management - Outward missions,UK Trade & Investment - Sectors Group,FOREIGN AND COMMONWEALTH OFFICE (FCO),145826, 537.36 
UK Trade and Investment Programme,UK Trade and Investment Programme,04/05/2011 ,Event Management - Outward missions,UK Trade & Investment - Sectors Group,FOREIGN AND COMMONWEALTH OFFICE (FCO),145829," 1,687.68 "
UK Trade and Investment Programme,UK Trade and Investment Programme,04/05/2011 ,Event Management - Outward missions,UK Trade & Investment - Sectors Group,FOREIGN AND COMMONWEALTH OFFICE (FCO),145917, 129.54 
UK Trade and Investment Programme,UK Trade and Investment Programme,04/05/2011 ,Event Management - Outward missions,UK Trade & Investment - Sectors Group,FOREIGN AND COMMONWEALTH OFFICE (FCO),145918, 161.98 
UK Trade and Investment Programme,UK Trade and Investment Programme,04/05/2011 ,Event Management - Outward missions,UK Trade & Investment - Sectors Group,FOREIGN AND COMMONWEALTH OFFICE (FCO),145919, 692.41 
UK Trade and Investment Programme,UK Trade and Investment Programme,04/05/2011 ,Event Management - Outward missions,UK Trade & Investment - Sectors Group,FOREIGN AND COMMONWEALTH OFFICE (FCO),145920, 37.33 
UK Trade and Investment Programme,UK Trade and Investment Programme,04/05/2011 ,Event Management - Outward missions,UK Trade & Investment - Sectors Group,FOREIGN AND COMMONWEALTH OFFICE (FCO),145921, 12.44 
UK Trade and Investment Programme,UK Trade and Investment Programme,04/05/2011 ,Event Management - Outward missions,UK Trade & Investment - Sectors Group,FOREIGN AND COMMONWEALTH OFFICE (FCO),145922, 3.93 
UK Trade and Investment Programme,UK Trade and Investment Programme,04/05/2011 ,Event Management - Outward missions,UK Trade & Investment - Sectors Group,FOREIGN AND COMMONWEALTH OFFICE (FCO),145923, 148.61 
UK Trade and Investment Programme,UK Trade and Investment Programme,04/05/2011 ,Event Management - Outward missions,UK Trade & Investment - Sectors Group,FOREIGN AND COMMONWEALTH OFFICE (FCO),145924, 15.56 
UK Trade and Investment Programme,UK Trade and Investment Programme,04/05/2011 ,Event Management - Outward missions,UK Trade & Investment - Sectors Group,FOREIGN AND COMMONWEALTH OFFICE (FCO),145925, 206.38 
UK Trade and Investment Programme,UK Trade and Investment Programme,04/05/2011 ,Event Management - Outward missions,UK Trade & Investment - Sectors Group,FOREIGN AND COMMONWEALTH OFFICE (FCO),145927, 25.51 
UK Trade and Investment Programme,UK Trade and Investment Programme,04/05/2011 ,Event Management - Outward missions,UK Trade & Investment - Sectors Group,FOREIGN AND COMMONWEALTH OFFICE (FCO),145928," 1,307.60 "
UK Trade and Investment Programme,UK Trade and Investment Programme,04/05/2011 ,Event Management - Outward missions,UK Trade & Investment - Sectors Group,FOREIGN AND COMMONWEALTH OFFICE (FCO),145929, 85.14 
UK Trade and Investment Programme,UK Trade and Investment Programme,04/05/2011 ,Event Management - Outward missions,UK Trade & Investment - Sectors Group,FOREIGN AND COMMONWEALTH OFFICE (FCO),145933, 52.99 
UK Trade and Investment Programme,UK Trade and Investment Programme,04/05/2011 ,Event Management - Outward missions,UK Trade & Investment - Sectors Group,FOREIGN AND COMMONWEALTH OFFICE (FCO),145950, 64.43 
UK Trade and Investment Programme,UK Trade and Investment Programme,04/05/2011 ,Training - General - Passport Development & Events,UK Trade & Investment - Regional Directorate,LEARNING IMPACT INTERNATIONAL LTD,147004," 1,366.39 "
UK Trade and Investment Programme,UK Trade and Investment Programme,04/05/2011 ,Training - General - Passport Development & Events,UK Trade & Investment - Regional Directorate,LEARNING IMPACT INTERNATIONAL LTD,147005," 1,297.54 "
UK Trade and Investment Programme,UK Trade and Investment Programme,04/05/2011 ,Training - General - Passport Development & Events,UK Trade & Investment - Regional Directorate,LEARNING IMPACT INTERNATIONAL LTD,147006," 2,452.50 "
UK Trade and Investment Programme,UK Trade and Investment Programme,04/05/2011 ,Training - General - Passport Development & Events,UK Trade & Investment - Regional Directorate,LEARNING IMPACT INTERNATIONAL LTD,147010," 2,466.00 "
UK Trade and Investment Programme,UK Trade and Investment Programme,04/05/2011 ,Event Management - Post Challenge Fund,UK Trade & Investment - Sectors Group,FOREIGN AND COMMONWEALTH OFFICE (FCO),145698," 8,516.76 "
UK Trade and Investment Programme,UK Trade and Investment Programme,04/05/2011 ,Event Management - Post Challenge Fund,UK Trade & Investment - Sectors Group,FOREIGN AND COMMONWEALTH OFFICE (FCO),145701, 416.37 
UK Trade and Investment Programme,UK Trade and Investment Programme,04/05/2011 ,Event Management - Post Challenge Fund,UK Trade & Investment - Sectors Group,FOREIGN AND COMMONWEALTH OFFICE (FCO),145764, 178.40 
UK Trade and Investment Programme,UK Trade and Investment Programme,04/05/2011 ,Event Management - Post Challenge Fund,UK Trade & Investment - Sectors Group,FOREIGN AND COMMONWEALTH OFFICE (FCO),145830, 428.93 
UK Trade and Investment Programme,UK Trade and Investment Programme,04/05/2011 ,Catering - Sector Events - Abroad,UK Trade & Investment - Sectors Group,FOREIGN AND COMMONWEALTH OFFICE (FCO),145866," 2,468.81 "
UK Trade and Investment Programme,UK Trade and Investment Programme,04/05/2011 ,Catering - Sector Events - Abroad,UK Trade & Investment - Sectors Group,FOREIGN AND COMMONWEALTH OFFICE (FCO),145866," (2,468.81)"
UK Trade and Investment Programme,UK Trade and Investment Programme,04/05/2011 ,Catering - Sector Events - Abroad,UK Trade & Investment - Sectors Group,FOREIGN AND COMMONWEALTH OFFICE (FCO),145866," 2,464.81 "
UK Trade and Investment Programme,UK Trade and Investment Programme,04/05/2011 ,Event Management - Sector Events - Abroad,UK Trade & Investment - Sectors Group,FOREIGN AND COMMONWEALTH OFFICE (FCO),145609, 229.98 
UK Trade and Investment Programme,UK Trade and Investment Programme,04/05/2011 ,Event Management - Sector Events - Abroad,UK Trade & Investment - Sectors Group,FOREIGN AND COMMONWEALTH OFFICE (FCO),145662, 486.95 
UK Trade and Investment Programme,UK Trade and Investment Programme,04/05/2011 ,Event Management - Sector Events - Abroad,UK Trade & Investment - Sectors Group,FOREIGN AND COMMONWEALTH OFFICE (FCO),145663, 45.51 
UK Trade and Investment Programme,UK Trade and Investment Programme,04/05/2011 ,Event Management - Sector Events - Abroad,UK Trade & Investment - Sectors Group,FOREIGN AND COMMONWEALTH OFFICE (FCO),145664, 113.77 
UK Trade and Investment Programme,UK Trade and Investment Programme,04/05/2011 ,Event Management - Sector Events - Abroad,UK Trade & Investment - Sectors Group,FOREIGN AND COMMONWEALTH OFFICE (FCO),145665, 62.57 
UK Trade and Investment Programme,UK Trade and Investment Programme,04/05/2011 ,Event Management - Sector Events - Abroad,UK Trade & Investment - Sectors Group,FOREIGN AND COMMONWEALTH OFFICE (FCO),145671, 119.97 
UK Trade and Investment Programme,UK Trade and Investment Programme,04/05/2011 ,Event Management - Sector Events - Abroad,UK Trade & Investment - Sectors Group,FOREIGN AND COMMONWEALTH OFFICE (FCO),145689, 412.39 
UK Trade and Investment Programme,UK Trade and Investment Programme,04/05/2011 ,Event Management - Sector Events - Abroad,UK Trade & Investment - Sectors Group,FOREIGN AND COMMONWEALTH OFFICE (FCO),145690, 206.19 
UK Trade and Investment Programme,UK Trade and Investment Programme,04/05/2011 ,Event Management - Sector Events - Abroad,UK Trade & Investment - Sectors Group,FOREIGN AND COMMONWEALTH OFFICE (FCO),145703, 924.35 
UK Trade and Investment Programme,UK Trade and Investment Programme,04/05/2011 ,Event Management - Sector Events - Abroad,UK Trade & Investment - Sectors Group,FOREIGN AND COMMONWEALTH OFFICE (FCO),145716," 2,195.52 "
UK Trade and Investment Programme,UK Trade and Investment Programme,04/05/2011 ,Event Management - Sector Events - Abroad,UK Trade & Investment - Sectors Group,FOREIGN AND COMMONWEALTH OFFICE (FCO),145718, 78.47 
UK Trade and Investment Programme,UK Trade and Investment Programme,04/05/2011 ,Event Management - Sector Events - Abroad,UK Trade & Investment - Sectors Group,FOREIGN AND COMMONWEALTH OFFICE (FCO),145719, 376.64 
UK Trade and Investment Programme,UK Trade and Investment Programme,04/05/2011 ,Event Management - Sector Events - Abroad,UK Trade & Investment - Sectors Group,FOREIGN AND COMMONWEALTH OFFICE (FCO),145720, 115.70 
UK Trade and Investment Programme,UK Trade and Investment Programme,04/05/2011 ,Event Management - Sector Events - Abroad,UK Trade & Investment - Sectors Group,FOREIGN AND COMMONWEALTH OFFICE (FCO),145721, 2.82 
UK Trade and Investment Programme,UK Trade and Investment Programme,04/05/2011 ,Event Management - Sector Events - Abroad,UK Trade & Investment - Sectors Group,FOREIGN AND COMMONWEALTH OFFICE (FCO),145723, 338.04 
UK Trade and Investment Programme,UK Trade and Investment Programme,04/05/2011 ,Event Management - Sector Events - Abroad,UK Trade & Investment - Sectors Group,FOREIGN AND COMMONWEALTH OFFICE (FCO),145741, 62.82 
UK Trade and Investment Programme,UK Trade and Investment Programme,04/05/2011 ,Event Management - Sector Events - Abroad,UK Trade & Investment - Sectors Group,FOREIGN AND COMMONWEALTH OFFICE (FCO),145748, 49.42 
UK Trade and Investment Programme,UK Trade and Investment Programme,04/05/2011 ,Event Management - Sector Events - Abroad,UK Trade & Investment - Sectors Group,FOREIGN AND COMMONWEALTH OFFICE (FCO),145755," 1,928.49 "
UK Trade and Investment Programme,UK Trade and Investment Programme,04/05/2011 ,Event Management - Sector Events - Abroad,UK Trade & Investment - Sectors Group,FOREIGN AND COMMONWEALTH OFFICE (FCO),145786, 669.89 
UK Trade and Investment Programme,UK Trade and Investment Programme,04/05/2011 ,Event Management - Sector Events - Abroad,UK Trade & Investment - Sectors Group,FOREIGN AND COMMONWEALTH OFFICE (FCO),145787," 1,257.94 "
UK Trade and Investment Programme,UK Trade and Investment Programme,04/05/2011 ,Event Management - Sector Events - Abroad,UK Trade & Investment - Sectors Group,FOREIGN AND COMMONWEALTH OFFICE (FCO),145789, 7.61 
UK Trade and Investment Programme,UK Trade and Investment Programme,04/05/2011 ,Event Management - Sector Events - Abroad,UK Trade & Investment - Sectors Group,FOREIGN AND COMMONWEALTH OFFICE (FCO),145799, 538.12 
UK Trade and Investment Programme,UK Trade and Investment Programme,04/05/2011 ,Event Management - Sector Events - Abroad,UK Trade & Investment - Sectors Group,FOREIGN AND COMMONWEALTH OFFICE (FCO),145800," 1,607.83 "
UK Trade and Investment Programme,UK Trade and Investment Programme,04/05/2011 ,Event Management - Sector Events - Abroad,UK Trade & Investment - Sectors Group,FOREIGN AND COMMONWEALTH OFFICE (FCO),145827, 127.10 
UK Trade and Investment Programme,UK Trade and Investment Programme,04/05/2011 ,Event Management - Sector Events - Abroad,UK Trade & Investment - Sectors Group,FOREIGN AND COMMONWEALTH OFFICE (FCO),145828, 693.75 
UK Trade and Investment Programme,UK Trade and Investment Programme,04/05/2011 ,Event Management - Sector Events - Abroad,UK Trade & Investment - Sectors Group,FOREIGN AND COMMONWEALTH OFFICE (FCO),145831, 89.55 
UK Trade and Investment Programme,UK Trade and Investment Programme,04/05/2011 ,Event Management - Sector Events - Abroad,UK Trade & Investment - Sectors Group,FOREIGN AND COMMONWEALTH OFFICE (FCO),145832, 854.22 
UK Trade and Investment Programme,UK Trade and Investment Programme,04/05/2011 ,Event Management - Sector Events - Abroad,UK Trade & Investment - Sectors Group,FOREIGN AND COMMONWEALTH OFFICE (FCO),145832, (854.22)
UK Trade and Investment Programme,UK Trade and Investment Programme,04/05/2011 ,Event Management - Sector Events - Abroad,UK Trade & Investment - Sectors Group,FOREIGN AND COMMONWEALTH OFFICE (FCO),145832, 854.22 
UK Trade and Investment Programme,UK Trade and Investment Programme,04/05/2011 ,Event Management - Sector Events - Abroad,UK Trade & Investment - Sectors Group,FOREIGN AND COMMONWEALTH OFFICE (FCO),145832, (854.22)
UK Trade and Investment Programme,UK Trade and Investment Programme,04/05/2011 ,Event Management - Sector Events - Abroad,UK Trade & Investment - Sectors Group,FOREIGN AND COMMONWEALTH OFFICE (FCO),145832, 854.22 
UK Trade and Investment Programme,UK Trade and Investment Programme,04/05/2011 ,Event Management - Sector Events - Abroad,UK Trade & Investment - Sectors Group,FOREIGN AND COMMONWEALTH OFFICE (FCO),145840, 288.85 
UK Trade and Investment Programme,UK Trade and Investment Programme,04/05/2011 ,Event Management - Sector Events - Abroad,UK Trade & Investment - Sectors Group,FOREIGN AND COMMONWEALTH OFFICE (FCO),145842, 456.25 
UK Trade and Investment Programme,UK Trade and Investment Programme,04/05/2011 ,Event Management - Sector Events - Abroad,UK Trade & Investment - Sectors Group,FOREIGN AND COMMONWEALTH OFFICE (FCO),145843, 724.19 
UK Trade and Investment Programme,UK Trade and Investment Programme,04/05/2011 ,Event Management - Sector Events - Abroad,UK Trade & Investment - Sectors Group,FOREIGN AND COMMONWEALTH OFFICE (FCO),145858, 92.03 
UK Trade and Investment Programme,UK Trade and Investment Programme,04/05/2011 ,Event Management - Sector Events - Abroad,UK Trade & Investment - Sectors Group,FOREIGN AND COMMONWEALTH OFFICE (FCO),145859, 209.17 
UK Trade and Investment Programme,UK Trade and Investment Programme,04/05/2011 ,Event Management - Sector Events - Abroad,UK Trade & Investment - Sectors Group,FOREIGN AND COMMONWEALTH OFFICE (FCO),145860, 279.23 
UK Trade and Investment Programme,UK Trade and Investment Programme,04/05/2011 ,Event Management - Sector Events - Abroad,UK Trade & Investment - Sectors Group,FOREIGN AND COMMONWEALTH OFFICE (FCO),145861, 768.68 
UK Trade and Investment Programme,UK Trade and Investment Programme,04/05/2011 ,Event Management - Sector Events - Abroad,UK Trade & Investment - Sectors Group,FOREIGN AND COMMONWEALTH OFFICE (FCO),145862, 501.99 
UK Trade and Investment Programme,UK Trade and Investment Programme,04/05/2011 ,Event Management - Sector Events - Abroad,UK Trade & Investment - Sectors Group,FOREIGN AND COMMONWEALTH OFFICE (FCO),145863, 319.56 
UK Trade and Investment Programme,UK Trade and Investment Programme,04/05/2011 ,Event Management - Sector Events - Abroad,UK Trade & Investment - Sectors Group,FOREIGN AND COMMONWEALTH OFFICE (FCO),145865, 584.61 
UK Trade and Investment Programme,UK Trade and Investment Programme,04/05/2011 ,Event Management - Sector Events - Abroad,UK Trade & Investment - Sectors Group,FOREIGN AND COMMONWEALTH OFFICE (FCO),145867, 302.45 
UK Trade and Investment Programme,UK Trade and Investment Programme,04/05/2011 ,Event Management - Sector Events - Abroad,UK Trade & Investment - Sectors Group,FOREIGN AND COMMONWEALTH OFFICE (FCO),145869, 272.41 
UK Trade and Investment Programme,UK Trade and Investment Programme,04/05/2011 ,Event Management - Sector Events - Abroad,UK Trade & Investment - Sectors Group,FOREIGN AND COMMONWEALTH OFFICE (FCO),145870, (353.78)
UK Trade and Investment Programme,UK Trade and Investment Programme,04/05/2011 ,Event Management - Sector Events - Abroad,UK Trade & Investment - Sectors Group,FOREIGN AND COMMONWEALTH OFFICE (FCO),145871," 2,498.12 "
UK Trade and Investment Programme,UK Trade and Investment Programme,04/05/2011 ,Event Management - Sector Events - Abroad,UK Trade & Investment - Sectors Group,FOREIGN AND COMMONWEALTH OFFICE (FCO),145890," 1,533.10 "
UK Trade and Investment Programme,UK Trade and Investment Programme,04/05/2011 ,Event Management - Sector Events - Abroad,UK Trade & Investment - Sectors Group,FOREIGN AND COMMONWEALTH OFFICE (FCO),145891, 97.73 
UK Trade and Investment Programme,UK Trade and Investment Programme,04/05/2011 ,Event Management - Sector Events - Abroad,UK Trade & Investment - Sectors Group,FOREIGN AND COMMONWEALTH OFFICE (FCO),145892, 40.53 
UK Trade and Investment Programme,UK Trade and Investment Programme,04/05/2011 ,Event Management - Sector Events - Abroad,UK Trade & Investment - Sectors Group,FOREIGN AND COMMONWEALTH OFFICE (FCO),145893," 4,765.87 "
UK Trade and Investment Programme,UK Trade and Investment Programme,04/05/2011 ,Event Management - Sector Events - Abroad,UK Trade & Investment - Sectors Group,FOREIGN AND COMMONWEALTH OFFICE (FCO),145894, 519.94 
UK Trade and Investment Programme,UK Trade and Investment Programme,04/05/2011 ,Event Management - Sector Events - Abroad,UK Trade & Investment - Sectors Group,FOREIGN AND COMMONWEALTH OFFICE (FCO),145895, 47.03 
UK Trade and Investment Programme,UK Trade and Investment Programme,04/05/2011 ,Event Management - Sector Events - Abroad,UK Trade & Investment - Sectors Group,FOREIGN AND COMMONWEALTH OFFICE (FCO),145900," 2,401.69 "
UK Trade and Investment Programme,UK Trade and Investment Programme,04/05/2011 ,Event Management - Sector Events - Abroad,UK Trade & Investment - Sectors Group,FOREIGN AND COMMONWEALTH OFFICE (FCO),145931," 13,347.83 "
UK Trade and Investment Programme,UK Trade and Investment Programme,04/05/2011 ,Event Management - Sector Events - Abroad,UK Trade & Investment - Sectors Group,FOREIGN AND COMMONWEALTH OFFICE (FCO),145931," (13,347.83)"
UK Trade and Investment Programme,UK Trade and Investment Programme,04/05/2011 ,Event Management - Sector Events - Abroad,UK Trade & Investment - Sectors Group,FOREIGN AND COMMONWEALTH OFFICE (FCO),145931, 311.14 
UK Trade and Investment Programme,UK Trade and Investment Programme,04/05/2011 ,Event Management - Sector Events - Abroad,UK Trade & Investment - Sectors Group,FOREIGN AND COMMONWEALTH OFFICE (FCO),145931, (311.14)
UK Trade and Investment Programme,UK Trade and Investment Programme,04/05/2011 ,Event Management - Sector Events - Abroad,UK Trade & Investment - Sectors Group,FOREIGN AND COMMONWEALTH OFFICE (FCO),145931, 311.10 
UK Trade and Investment Programme,UK Trade and Investment Programme,04/05/2011 ,Photographic Services - Sector Events - Abroad,UK Trade & Investment - Sectors Group,FOREIGN AND COMMONWEALTH OFFICE (FCO),145889, 473.48 
UK Trade and Investment Programme,UK Trade and Investment Programme,04/05/2011 ,Promotional Materials - Sector Events - Abroad,UK Trade & Investment - Sectors Group,HONAV UK LTD,147018, 218.88 
UK Trade and Investment Programme,UK Trade and Investment Programme,04/05/2011 ,Travel and Subsistence O'seas - Sector Events - Abroad,UK Trade & Investment - Sectors Group,FOREIGN AND COMMONWEALTH OFFICE (FCO),145652," 2,332.38 "
UK Trade and Investment Programme,UK Trade and Investment Programme,04/05/2011 ,Travel and Subsistence O'seas - Sector Events - Abroad,UK Trade & Investment - Sectors Group,FOREIGN AND COMMONWEALTH OFFICE (FCO),145653, 536.47 
UK Trade and Investment Programme,UK Trade and Investment Programme,04/05/2011 ,Travel and Subsistence O'seas - Sector Events - Abroad,UK Trade & Investment - Sectors Group,FOREIGN AND COMMONWEALTH OFFICE (FCO),145654," 3,860.97 "
UK Trade and Investment Programme,UK Trade and Investment Programme,04/05/2011 ,Travel and Subsistence O'seas - Sector Events - Abroad,UK Trade & Investment - Sectors Group,FOREIGN AND COMMONWEALTH OFFICE (FCO),145655, 249.65 
UK Trade and Investment Programme,UK Trade and Investment Programme,04/05/2011 ,Travel and Subsistence O'seas - Sector Events - Abroad,UK Trade & Investment - Sectors Group,FOREIGN AND COMMONWEALTH OFFICE (FCO),145656, 79.48 
UK Trade and Investment Programme,UK Trade and Investment Programme,04/05/2011 ,Travel and Subsistence O'seas - Sector Events - Abroad,UK Trade & Investment - Sectors Group,FOREIGN AND COMMONWEALTH OFFICE (FCO),145853, 248.23 
UK Trade and Investment Programme,UK Trade and Investment Programme,04/05/2011 ,Travel and Subsistence O'seas - Sector Events - Abroad,UK Trade & Investment - Sectors Group,BRITISH EXPERTISE,147017, 447.00 
UK Trade and Investment Programme,UK Trade and Investment Programme,04/05/2011 ,Travel and Subsistence O'seas - Sector Events - Abroad,UK Trade & Investment - Sectors Group,SUBSEA UK,147019," 1,127.97 "
UK Trade and Investment Programme,UK Trade and Investment Programme,04/05/2011 ,Venue Hire - Sector Events - Abroad,UK Trade & Investment - Sectors Group,FOREIGN AND COMMONWEALTH OFFICE (FCO),145898, 246.39 
UK Trade and Investment Programme,UK Trade and Investment Programme,04/05/2011 ,Venue Hire - Sector Events - Abroad,UK Trade & Investment - Sectors Group,FOREIGN AND COMMONWEALTH OFFICE (FCO),145938, (33.26)
UK Trade and Investment Programme,UK Trade and Investment Programme,04/05/2011 ,Venue Hire - Sector Events - Abroad,UK Trade & Investment - Sectors Group,FOREIGN AND COMMONWEALTH OFFICE (FCO),145939, 299.32 
UK Trade and Investment Programme,UK Trade and Investment Programme,04/05/2011 ,Venue Hire - Sector Events - Abroad,UK Trade & Investment - Sectors Group,FOREIGN AND COMMONWEALTH OFFICE (FCO),145940, 140.93 
UK Trade and Investment Programme,UK Trade and Investment Programme,04/05/2011 ,Venue Hire - Sector Events - Abroad,UK Trade & Investment - Sectors Group,FOREIGN AND COMMONWEALTH OFFICE (FCO),145941, 26.00 
UK Trade and Investment Programme,UK Trade and Investment Programme,04/05/2011 ,Venue Hire - Sector Events - Abroad,UK Trade & Investment - Sectors Group,FOREIGN AND COMMONWEALTH OFFICE (FCO),145942, 10.88 
UK Trade and Investment Programme,UK Trade and Investment Programme,04/05/2011 ,Venue Hire - Sector Events - Abroad,UK Trade & Investment - Sectors Group,FOREIGN AND COMMONWEALTH OFFICE (FCO),145943, 305.32 
UK Trade and Investment Programme,UK Trade and Investment Programme,04/05/2011 ,Venue Hire - Sector Events - Abroad,UK Trade & Investment - Sectors Group,FOREIGN AND COMMONWEALTH OFFICE (FCO),145944, 28.61 
UK Trade and Investment Programme,UK Trade and Investment Programme,04/05/2011 ,Venue Hire - Sector Events - Abroad,UK Trade & Investment - Sectors Group,FOREIGN AND COMMONWEALTH OFFICE (FCO),145945, 29.86 
UK Trade and Investment Programme,UK Trade and Investment Programme,04/05/2011 ,Event Management - Sector Events - UK,UK Trade & Investment - Sectors Group,FOREIGN AND COMMONWEALTH OFFICE (FCO),145691," (1,273.96)"
UK Trade and Investment Programme,UK Trade and Investment Programme,04/05/2011 ,Event Management - Sector Events - UK,UK Trade & Investment - Sectors Group,FOREIGN AND COMMONWEALTH OFFICE (FCO),145852, 895.99 
UK Trade and Investment Programme,UK Trade and Investment Programme,04/05/2011 ,Travel and Subsistence O'seas - Sector Events - UK,UK Trade & Investment - Sectors Group,FOREIGN AND COMMONWEALTH OFFICE (FCO),145823, 363.37 
UK Trade and Investment Programme,UK Trade and Investment Programme,04/05/2011 ,Travel and Subsistence O'seas - Sector Events - UK,UK Trade & Investment - Sectors Group,FOREIGN AND COMMONWEALTH OFFICE (FCO),145824, 417.45 
UK Trade and Investment Programme,UK Trade and Investment Programme,04/05/2011 ,Travel and Subsistence O'seas - Sector Events - UK,UK Trade & Investment - Sectors Group,FOREIGN AND COMMONWEALTH OFFICE (FCO),145825, 256.54 
UK Trade and Investment Programme,UK Trade and Investment Programme,04/05/2011 ,Travel and Subsistence UK - Sector Events - UK,UK Trade & Investment - Sectors Group,"Personal Expense, Name Witheld",505168, 73.30 
UK Trade and Investment Programme,UK Trade and Investment Programme,04/05/2011 ,Depreciation - Website Costs - Security Events,UK Trade & Investment - Defence and Security Organisation,PANLOGIC LTD,146981," 1,860.00 "
UK Trade and Investment Programme,UK Trade and Investment Programme,04/05/2011 ,Event Management - Security Events,UK Trade & Investment - Defence and Security Organisation,FOREIGN AND COMMONWEALTH OFFICE (FCO),145622," 2,000.00 "
UK Trade and Investment Programme,UK Trade and Investment Programme,04/05/2011 ,Event Management - Security Events,UK Trade & Investment - Defence and Security Organisation,FOREIGN AND COMMONWEALTH OFFICE (FCO),145873," (2,454.29)"
UK Trade and Investment Programme,UK Trade and Investment Programme,04/05/2011 ,Event Management - Security Events,UK Trade & Investment - Defence and Security Organisation,FOREIGN AND COMMONWEALTH OFFICE (FCO),145874," 2,000.00 "
UK Trade and Investment Programme,UK Trade and Investment Programme,04/05/2011 ,Event Management - Security Events,UK Trade & Investment - Defence and Security Organisation,FOREIGN AND COMMONWEALTH OFFICE (FCO),145901, 296.55 
UK Trade and Investment Programme,UK Trade and Investment Programme,04/05/2011 ,Event Management - Security Events,UK Trade & Investment - Defence and Security Organisation,FOREIGN AND COMMONWEALTH OFFICE (FCO),145903, 970.73 
UK Trade and Investment Programme,UK Trade and Investment Programme,04/05/2011 ,Event Management - Security Events,UK Trade & Investment - Defence and Security Organisation,FOREIGN AND COMMONWEALTH OFFICE (FCO),145904," 11,376.93 "
UK Trade and Investment Programme,UK Trade and Investment Programme,04/05/2011 ,Event Management - Security Events,UK Trade & Investment - Defence and Security Organisation,FOREIGN AND COMMONWEALTH OFFICE (FCO),145905," 4,230.96 "
UK Trade and Investment Programme,UK Trade and Investment Programme,04/05/2011 ,Travel and Subsistence O'seas - Security Events,UK Trade & Investment - Defence and Security Organisation,FOREIGN AND COMMONWEALTH OFFICE (FCO),145613, 344.68 
UK Trade and Investment Programme,UK Trade and Investment Programme,04/05/2011 ,Travel and Subsistence O'seas - Security Events,UK Trade & Investment - Defence and Security Organisation,FOREIGN AND COMMONWEALTH OFFICE (FCO),145651," 4,212.63 "
UK Trade and Investment Programme,UK Trade and Investment Programme,04/05/2011 ,Travel and Subsistence O'seas - Security Events,UK Trade & Investment - Defence and Security Organisation,FOREIGN AND COMMONWEALTH OFFICE (FCO),145696, 0.53 
UK Trade and Investment Programme,UK Trade and Investment Programme,04/05/2011 ,Travel and Subsistence O'seas - Security Events,UK Trade & Investment - Defence and Security Organisation,FOREIGN AND COMMONWEALTH OFFICE (FCO),145797, 702.37 
UK Trade and Investment Programme,UK Trade and Investment Programme,04/05/2011 ,Travel and Subsistence O'seas - Security Events,UK Trade & Investment - Defence and Security Organisation,FOREIGN AND COMMONWEALTH OFFICE (FCO),145848, 135.25 
UK Trade and Investment Programme,UK Trade and Investment Programme,04/05/2011 ,Travel and Subsistence O'seas - Security Events,UK Trade & Investment - Defence and Security Organisation,FOREIGN AND COMMONWEALTH OFFICE (FCO),145951, 32.32 
UK Trade and Investment Programme,UK Trade and Investment Programme,04/05/2011 ,Other Transportation Hire - Security Farnborough,UK Trade & Investment - Defence and Security Organisation,GOVERNMENT CAR AND DESPATCH AGENCY,146991," 86,382.50 "
UK Trade and Investment Programme,UK Trade and Investment Programme,04/05/2011 ,Basic Grants - SESA Solo Support Scheme,UK Trade & Investment - Sectors Group,ASTEK INNOVATIONS LTD,147008," 1,000.00 "
UK Trade and Investment Programme,UK Trade and Investment Programme,04/05/2011 ,Basic Grants - SESA Solo Support Scheme,UK Trade & Investment - Sectors Group,NORTHERN PRECISION LTD,147009," 1,000.00 "
UK Trade and Investment Programme,UK Trade and Investment Programme,04/05/2011 ,Event Management - Short Term Business Attachments (STBA),UK Trade & Investment - Sectors Group,FOREIGN AND COMMONWEALTH OFFICE (FCO),145661, 243.98 
UK Trade and Investment Programme,UK Trade and Investment Programme,04/05/2011 ,Event Management - Short Term Business Attachments (STBA),UK Trade & Investment - Sectors Group,FOREIGN AND COMMONWEALTH OFFICE (FCO),145845, 995.68 
UK Trade and Investment Programme,UK Trade and Investment Programme,04/05/2011 ,Travel and Subsistence O'seas - Short Term Business Attachments (STBA),UK Trade & Investment - Sectors Group,FOREIGN AND COMMONWEALTH OFFICE (FCO),145659, 243.71 
UK Trade and Investment Programme,UK Trade and Investment Programme,04/05/2011 ,Advertising - Trade Marketing Events,UK Trade & Investment - Regional Directorate,MRS J TROTMAN T/A 2GETHER,147003, 125.00 
UK Trade and Investment Programme,UK Trade and Investment Programme,04/05/2011 ,Conference and seminar fees - Trade Marketing Events,UK Trade & Investment - Defence and Security Organisation,FOREIGN AND COMMONWEALTH OFFICE (FCO),145617, 278.18 
UK Trade and Investment Programme,UK Trade and Investment Programme,04/05/2011 ,Display Materials/Signage - Trade Marketing Events,UK Trade & Investment - Marketing & Communications Group,CLEARVIEW IMAGING SERVICES LTD,146988," 10,254.00 "
UK Trade and Investment Programme,UK Trade and Investment Programme,04/05/2011 ,Travel and Subsistence O'seas - Trade Marketing Events,UK Trade & Investment - Regional Directorate,TRICON FOODSERVICE CONSULTANTS PLC,146995," 1,000.00 "
UK Trade and Investment Programme,UK Trade and Investment Programme,04/05/2011 ,Photographic Services - Trade Marketing Publication,UK Trade & Investment - Marketing & Communications Group,FOREIGN AND COMMONWEALTH OFFICE (FCO),145714, 147.30 
UK Trade and Investment Programme,UK Trade and Investment Programme,04/05/2011 ,Photographic Services - Trade Marketing Publication,UK Trade & Investment - Marketing & Communications Group,FOREIGN AND COMMONWEALTH OFFICE (FCO),145717, 426.94 
UK Trade and Investment Programme,UK Trade and Investment Programme,04/05/2011 ,Photographic Services - Trade Marketing Publication,UK Trade & Investment - Marketing & Communications Group,FOREIGN AND COMMONWEALTH OFFICE (FCO),145761, 175.74 
UK Trade and Investment Programme,UK Trade and Investment Programme,04/05/2011 ,Photographic Services - Trade Marketing Publication,UK Trade & Investment - Marketing & Communications Group,FOREIGN AND COMMONWEALTH OFFICE (FCO),145767," 3,431.88 "
UK Trade and Investment Programme,UK Trade and Investment Programme,04/05/2011 ,Photographic Services - Trade Marketing Publication,UK Trade & Investment - Marketing & Communications Group,FOREIGN AND COMMONWEALTH OFFICE (FCO),145768, 624.17 
UK Trade and Investment Programme,UK Trade and Investment Programme,04/05/2011 ,Photographic Services - Trade Marketing Publication,UK Trade & Investment - Marketing & Communications Group,FOREIGN AND COMMONWEALTH OFFICE (FCO),145772, 486.28 
UK Trade and Investment Programme,UK Trade and Investment Programme,04/05/2011 ,Photographic Services - Trade Marketing Publication,UK Trade & Investment - Marketing & Communications Group,FOREIGN AND COMMONWEALTH OFFICE (FCO),145773, 320.54 
UK Trade and Investment Programme,UK Trade and Investment Programme,04/05/2011 ,Photographic Services - Trade Marketing Publication,UK Trade & Investment - Marketing & Communications Group,FOREIGN AND COMMONWEALTH OFFICE (FCO),145774, 190.10 
UK Trade and Investment Programme,UK Trade and Investment Programme,04/05/2011 ,Photographic Services - Trade Marketing Publication,UK Trade & Investment - Marketing & Communications Group,FOREIGN AND COMMONWEALTH OFFICE (FCO),145775," 8,317.91 "
UK Trade and Investment Programme,UK Trade and Investment Programme,04/05/2011 ,Video Production Services - Trade Marketing Publication,UK Trade & Investment - Marketing & Communications Group,FOREIGN AND COMMONWEALTH OFFICE (FCO),145702," 1,338.22 "
UK Trade and Investment Programme,UK Trade and Investment Programme,04/05/2011 ,Video Production Services - Trade Marketing Publication,UK Trade & Investment - Marketing & Communications Group,FOREIGN AND COMMONWEALTH OFFICE (FCO),145702," 1,000.00 "
UK Trade and Investment Programme,UK Trade and Investment Programme,04/05/2011 ,Authoring and Copywriting Costs - Trade Marketing Publicity,UK Trade & Investment - Marketing & Communications Group,FOREIGN AND COMMONWEALTH OFFICE (FCO),145699," 19,745.44 "
UK Trade and Investment Programme,UK Trade and Investment Programme,04/05/2011 ,Basic Grants - Trade Show Access Programme,UK Trade & Investment - Sectors Group,"BREWING, FOOD BEVERAGE INDUSTRY SUPPLIERS ASSOCIATION",147000," 4,200.00 "
UK Trade and Investment Programme,UK Trade and Investment Programme,04/05/2011 ,Sponsors Grants - Trade Show Access Programme,UK Trade & Investment - Sectors Group,"BREWING, FOOD BEVERAGE INDUSTRY SUPPLIERS ASSOCIATION",147001, 720.00 
UK Trade and Investment Programme,UK Trade and Investment Programme,04/05/2011 ,Event Management - UKTI Corporate Marketing,UK Trade & Investment - Marketing & Communications Group,FOREIGN AND COMMONWEALTH OFFICE (FCO),145801," 1,277.49 "
UK Trade and Investment Programme,UK Trade and Investment Programme,04/05/2011 ,Other Accomodation costs - UKTI Corporate Marketing,UK Trade & Investment - Marketing & Communications Group,FOREIGN AND COMMONWEALTH OFFICE (FCO),145802," 1,749.61 "
UK Trade and Investment Programme,UK Trade and Investment Programme,05/05/2011 ,Event Management - Government 2 Government,UK Trade & Investment - Sectors Group,M&R COMMUNICATIONS LTD,147022," 1,030.00 "
UK Trade and Investment Programme,UK Trade and Investment Programme,05/05/2011 ,Event Management - Government 2 Government,UK Trade & Investment - Sectors Group,M&R COMMUNICATIONS LTD,147022," (1,030.00)"
UK Trade and Investment Programme,UK Trade and Investment Programme,05/05/2011 ,Event Management - Government 2 Government,UK Trade & Investment - Sectors Group,M&R COMMUNICATIONS LTD,147022, 870.00 
UK Trade and Investment Programme,UK Trade and Investment Programme,05/05/2011 ,Travel and Subsistence UK - International Business Specialists,UK Trade & Investment - Sectors Group,"Personal Expense, Name Witheld",505169, 592.52 
UK Trade and Investment Programme,UK Trade and Investment Programme,05/05/2011 ,Travel and Subsistence UK - International Business Specialists,UK Trade & Investment - Sectors Group,"Personal Expense, Name Witheld",505170, 63.99 
UK Trade and Investment Programme,UK Trade and Investment Programme,05/05/2011 ,Travel and Subsistence O'seas - Market Visit Scheme,UK Trade & Investment - Regional Directorate,BPR MEDICAL LTD,146997, 730.00 
UK Trade and Investment Programme,UK Trade and Investment Programme,05/05/2011 ,Bank Charges - Commercial Banks - Overseas Market Introduction Service,UK Trade & Investment - IT and Finance Group,DTI OTSS COSTS A\C,147014, 26.05 
UK Trade and Investment Programme,UK Trade and Investment Programme,05/05/2011 ,Bank Charges - Commercial Banks - Overseas Market Introduction Service,UK Trade & Investment - IT and Finance Group,DTI OTSS COSTS A\C,147015, 27.50 
UK Trade and Investment Programme,UK Trade and Investment Programme,05/05/2011 ,Fees and Charges - Overseas Market Introduction Service,UK Trade & Investment - IT and Finance Group,RED INC LTD T/A ELVIS JESUS,147013," 1,276.60 "
UK Trade and Investment Programme,UK Trade and Investment Programme,05/05/2011 ,Scheme Management Charges - Passport Business Development Credits,UK Trade & Investment - Regional Directorate,WRAPID MANUFACTURING LTD,146800, 625.00 
UK Trade and Investment Programme,UK Trade and Investment Programme,05/05/2011 ,Scheme Management Charges - Passport Business Development Credits,UK Trade & Investment - Regional Directorate,SAFFRON SCIENTIFIC EQUIPMENT LTD,146801," 1,500.00 "
UK Trade and Investment Programme,UK Trade and Investment Programme,05/05/2011 ,Scheme Management Charges - Passport Business Development Credits,UK Trade & Investment - Regional Directorate,SITNSEE LTD,146855, 908.00 
UK Trade and Investment Programme,UK Trade and Investment Programme,05/05/2011 ,Scheme Management Charges - Passport Business Development Credits,UK Trade & Investment - Regional Directorate,CHARLTON & JENRICK LTD,146856, 114.61 
UK Trade and Investment Programme,UK Trade and Investment Programme,05/05/2011 ,Scheme Management Charges - Passport Business Development Credits,UK Trade & Investment - Regional Directorate,PROSELL LEARNING LTD,146857, 499.50 
UK Trade and Investment Programme,UK Trade and Investment Programme,05/05/2011 ,Scheme Management Charges - Passport Business Development Credits,UK Trade & Investment - Regional Directorate,PROSELL LEARNING LTD,146857, 500.00 
UK Trade and Investment Programme,UK Trade and Investment Programme,05/05/2011 ,Scheme Management Charges - Passport Business Development Credits,UK Trade & Investment - Regional Directorate,MANVERS ENGINEERING LTD,146859, 549.74 
UK Trade and Investment Programme,UK Trade and Investment Programme,05/05/2011 ,Scheme Management Charges - Passport Business Development Credits,UK Trade & Investment - Regional Directorate,JUST2EASY LTD,146860, 146.00 
UK Trade and Investment Programme,UK Trade and Investment Programme,05/05/2011 ,Scheme Management Charges - Passport Business Development Credits,UK Trade & Investment - Regional Directorate,JUST2EASY LTD,146860, 104.00 
UK Trade and Investment Programme,UK Trade and Investment Programme,05/05/2011 ,Scheme Management Charges - Passport Business Development Credits,UK Trade & Investment - Regional Directorate,M4 MANAGEMENT LTD,146877, 520.64 
UK Trade and Investment Programme,UK Trade and Investment Programme,05/05/2011 ,Scheme Management Charges - Passport Business Development Credits,UK Trade & Investment - Regional Directorate,JDM FOOD GROUP LTD,146879, 848.87 
UK Trade and Investment Programme,UK Trade and Investment Programme,05/05/2011 ,Scheme Management Charges - Passport Business Development Credits,UK Trade & Investment - Regional Directorate,CRP PRINT & PACKAGING LTD,146880, 993.00 
UK Trade and Investment Programme,UK Trade and Investment Programme,05/05/2011 ,Scheme Management Charges - Passport Business Development Credits,UK Trade & Investment - Regional Directorate,CRP PRINT & PACKAGING LTD,146880, 507.00 
UK Trade and Investment Programme,UK Trade and Investment Programme,05/05/2011 ,Scheme Management Charges - Passport Business Development Credits,UK Trade & Investment - Regional Directorate,SOUND ABOUT RIGHTS LTD,146883," 1,393.27 "
UK Trade and Investment Programme,UK Trade and Investment Programme,05/05/2011 ,Scheme Management Charges - Passport Business Development Credits,UK Trade & Investment - Regional Directorate,PEAK CONSULTING EU LTD,146887, 500.00 
UK Trade and Investment Programme,UK Trade and Investment Programme,05/05/2011 ,Scheme Management Charges - Passport Business Development Credits,UK Trade & Investment - Regional Directorate,BRAVE NEW TALENT LTD,146888, 354.10 
UK Trade and Investment Programme,UK Trade and Investment Programme,05/05/2011 ,Scheme Management Charges - Passport Business Development Credits,UK Trade & Investment - Regional Directorate,SLINGCO LTD,146937," 1,500.00 "
UK Trade and Investment Programme,UK Trade and Investment Programme,05/05/2011 ,Scheme Management Charges - Passport Business Development Credits,UK Trade & Investment - Regional Directorate,SAGAR AND CAMPBELL LTD,146939, 134.50 
UK Trade and Investment Programme,UK Trade and Investment Programme,05/05/2011 ,Scheme Management Charges - Passport Business Development Credits,UK Trade & Investment - Regional Directorate,SAGAR AND CAMPBELL LTD,146939, 327.50 
UK Trade and Investment Programme,UK Trade and Investment Programme,05/05/2011 ,Scheme Management Charges - Passport Business Development Credits,UK Trade & Investment - Regional Directorate,STEPHEN GEORGE AND PARTNERS LLP,146941, 781.91 
UK Trade and Investment Programme,UK Trade and Investment Programme,05/05/2011 ,Training - General - Passport Development & Events,UK Trade & Investment - Regional Directorate,LEARNING IMPACT INTERNATIONAL LTD,147037," 2,512.26 "
UK Trade and Investment Programme,UK Trade and Investment Programme,05/05/2011 ,Translation/Interpretation services - Sector Events - UK,UK Trade & Investment - Sectors Group,EURO QUEST LTD T/A 1ST TRANSNATIONAL TRANSLATIONS,147026," 5,840.00 "
UK Trade and Investment Programme,UK Trade and Investment Programme,05/05/2011 ,Translation/Interpretation services - Sector Events - UK,UK Trade & Investment - Sectors Group,EURO QUEST LTD T/A 1ST TRANSNATIONAL TRANSLATIONS,147026, 594.80 
UK Trade and Investment Programme,UK Trade and Investment Programme,05/05/2011 ,Rental of Accomodation - Security Events,UK Trade & Investment - Defence and Security Organisation,ROYAL GARDEN HOTEL,147038, 316.80 
UK Trade and Investment Programme,UK Trade and Investment Programme,05/05/2011 ,Rental of Accomodation - Security Events,UK Trade & Investment - Defence and Security Organisation,ROYAL GARDEN HOTEL,147041, 234.00 
UK Trade and Investment Programme,UK Trade and Investment Programme,05/05/2011 ,Rental of Accomodation - Security Events,UK Trade & Investment - Defence and Security Organisation,ROYAL GARDEN HOTEL,147042, 234.00 
UK Trade and Investment Programme,UK Trade and Investment Programme,05/05/2011 ,Rental of Accomodation - Security Events,UK Trade & Investment - Defence and Security Organisation,ROYAL GARDEN HOTEL,147043, 671.60 
UK Trade and Investment Programme,UK Trade and Investment Programme,05/05/2011 ,Rental of Accomodation - Security Events,UK Trade & Investment - Defence and Security Organisation,ROYAL GARDEN HOTEL,147044, 978.50 
UK Trade and Investment Programme,UK Trade and Investment Programme,05/05/2011 ,Basic Grants - SESA Solo Support Scheme,UK Trade & Investment - Sectors Group,MTECH CONSULT LTD,147021," 1,000.00 "
UK Trade and Investment Programme,UK Trade and Investment Programme,05/05/2011 ,Basic Grants - SESA Solo Support Scheme,UK Trade & Investment - Sectors Group,GOONVEAN LTD,147023," 1,000.00 "
UK Trade and Investment Programme,UK Trade and Investment Programme,05/05/2011 ,Basic Grants - SESA Solo Support Scheme,UK Trade & Investment - Sectors Group,SENTIMENTAL CONNECTIONS,147024," 1,000.00 "
UK Trade and Investment Programme,UK Trade and Investment Programme,05/05/2011 ,Basic Grants - SESA Solo Support Scheme,UK Trade & Investment - Sectors Group,R&B UK JT LTD,147028," 1,000.00 "
UK Trade and Investment Programme,UK Trade and Investment Programme,05/05/2011 ,Research and Development Costs - Study of Benefit of Trade & Investment,UK Trade & Investment - Economics and Evaluation,CHER LI,147030, 500.00 
UK Trade and Investment Programme,UK Trade and Investment Programme,05/05/2011 ,Photographic Services - Trade Marketing Publication,UK Trade & Investment - Marketing & Communications Group,CRUZ IT LTD T/A CIT DIGITAL,147039," 4,340.00 "
UK Trade and Investment Programme,UK Trade and Investment Programme,06/05/2011 ,Development Cost - Website (AUC) - Clearing Account - ,UK Trade & Investment - IT and Finance Group,ADECCO UK LTD,147090, 791.32 
UK Trade and Investment Programme,UK Trade and Investment Programme,06/05/2011 ,Development Cost - Website (AUC) - Clearing Account - ,UK Trade & Investment - IT and Finance Group,METHODS CONSULTING LTD,147099," 5,760.00 "
UK Trade and Investment Programme,UK Trade and Investment Programme,06/05/2011 ,Rental of Accomodation - ,UK Trade & Investment - Defence and Security Organisation,REMBRANDT HOTEL LTD,147101, 159.00 
UK Trade and Investment Programme,UK Trade and Investment Programme,06/05/2011 ,Rental of Accomodation - ,UK Trade & Investment - Defence and Security Organisation,REMBRANDT HOTEL LTD,147102, 159.00 
UK Trade and Investment Programme,UK Trade and Investment Programme,06/05/2011 ,Rental of Accomodation - ,UK Trade & Investment - Defence and Security Organisation,REMBRANDT HOTEL LTD,147103, 159.00 
UK Trade and Investment Programme,UK Trade and Investment Programme,06/05/2011 ,Rental of Accomodation - ,UK Trade & Investment - Defence and Security Organisation,REMBRANDT HOTEL LTD,147104, 159.00 
UK Trade and Investment Programme,UK Trade and Investment Programme,06/05/2011 ,Scheme Management Charges - Export Communications Review,UK Trade & Investment - Regional Directorate,THE BRITISH CHAMBERS OF COMMERCE,147140, 350.00 
UK Trade and Investment Programme,UK Trade and Investment Programme,06/05/2011 ,Scheme Management Charges - Gateway to Global Growth,UK Trade & Investment - Regional Directorate,EAST OF ENGLAND IDB LTD,145568," (53,004.14)"
UK Trade and Investment Programme,UK Trade and Investment Programme,06/05/2011 ,Scheme Management Charges - International Trade Team Contracting,UK Trade & Investment - Regional Directorate,EAST OF ENGLAND IDB LTD,147164," 13,500.00 "
UK Trade and Investment Programme,UK Trade and Investment Programme,06/05/2011 ,Media and Press Services - Inward Investment Publicity,UK Trade & Investment - Marketing & Communications Group,FARRAR MEDIA INTERNATIONAL LTD,147040," 10,833.33 "
UK Trade and Investment Programme,UK Trade and Investment Programme,06/05/2011 ,Travel and Subsistence O'seas - Market Visit Scheme,UK Trade & Investment - Regional Directorate,CABLE AND SPLICING SERVICES LTD,147079, 550.00 
UK Trade and Investment Programme,UK Trade and Investment Programme,06/05/2011 ,Travel and Subsistence O'seas - Market Visit Scheme,UK Trade & Investment - Regional Directorate,MARTINEAU,147082, 500.00 
UK Trade and Investment Programme,UK Trade and Investment Programme,06/05/2011 ,Travel and Subsistence O'seas - Market Visit Scheme,UK Trade & Investment - Regional Directorate,CABLE AND SPLICING SERVICES LTD,147084, 550.00 
UK Trade and Investment Programme,UK Trade and Investment Programme,06/05/2011 ,Travel and Subsistence O'seas - Market Visit Scheme,UK Trade & Investment - Regional Directorate,AEROSERVICES LTD,147124, 730.00 
UK Trade and Investment Programme,UK Trade and Investment Programme,06/05/2011 ,Travel and Subsistence O'seas - Market Visit Scheme,UK Trade & Investment - Regional Directorate,AEROSERVICES LTD,147124, 120.00 
UK Trade and Investment Programme,UK Trade and Investment Programme,06/05/2011 ,Travel and Subsistence O'seas - Market Visit Scheme,UK Trade & Investment - Regional Directorate,CYBER-DUCK LTD,147137, 500.00 
UK Trade and Investment Programme,UK Trade and Investment Programme,06/05/2011 ,Travel and Subsistence O'seas - Market Visit Scheme,UK Trade & Investment - Regional Directorate,CAMBRIDGE GLASSHOUSE COMPANY LTD,147144, 665.00 
UK Trade and Investment Programme,UK Trade and Investment Programme,06/05/2011 ,Travel and Subsistence O'seas - Market Visit Scheme,UK Trade & Investment - Regional Directorate,DEBEN DIAGNOSTICS LTD,147146, 500.00 
UK Trade and Investment Programme,UK Trade and Investment Programme,06/05/2011 ,Travel and Subsistence O'seas - Market Visit Scheme,UK Trade & Investment - Regional Directorate,DEBEN DIAGNOSTICS LTD,147146, 90.00 
UK Trade and Investment Programme,UK Trade and Investment Programme,06/05/2011 ,Travel and Subsistence O'seas - Market Visit Scheme,UK Trade & Investment - Regional Directorate,MINTY HIGHWAY LTD,147150, 500.00 
UK Trade and Investment Programme,UK Trade and Investment Programme,06/05/2011 ,Travel and Subsistence O'seas - Market Visit Scheme,UK Trade & Investment - Regional Directorate,ALCOHOLS LTD,147158, 500.00 
UK Trade and Investment Programme,UK Trade and Investment Programme,06/05/2011 ,Travel and Subsistence O'seas - Market Visit Scheme,UK Trade & Investment - Regional Directorate,ALCOHOLS LTD,147158, 90.00 
UK Trade and Investment Programme,UK Trade and Investment Programme,06/05/2011 ,Travel and Subsistence O'seas - Market Visit Scheme,UK Trade & Investment - Regional Directorate,ALCOHOLS LTD,147158, 60.00 
UK Trade and Investment Programme,UK Trade and Investment Programme,06/05/2011 ,Bank Charges - Commercial Banks - Overseas Market Introduction Service,UK Trade & Investment - IT and Finance Group,DTI OTSS COSTS A\C,147098, 20.34 
UK Trade and Investment Programme,UK Trade and Investment Programme,06/05/2011 ,Bank Charges - Commercial Banks - Overseas Market Introduction Service,UK Trade & Investment - IT and Finance Group,DTI OTSS COSTS A\C,147100," 3,967.92 "
UK Trade and Investment Programme,UK Trade and Investment Programme,06/05/2011 ,Bank Charges - Commercial Banks - Overseas Market Introduction Service,UK Trade & Investment - IT and Finance Group,DTI OTSS COSTS A\C,147100, 8.14 
UK Trade and Investment Programme,UK Trade and Investment Programme,06/05/2011 ,Advertising - Sector Events - Abroad,UK Trade & Investment - Sectors Group,HILAL AL KHALEEJ ADVERTISING,143725," 2,783.25 "
UK Trade and Investment Programme,UK Trade and Investment Programme,06/05/2011 ,Rental of Accomodation - Security Events,UK Trade & Investment - Defence and Security Organisation,ROYAL GARDEN HOTEL,147045," 1,111.15 "
UK Trade and Investment Programme,UK Trade and Investment Programme,06/05/2011 ,Rental of Accomodation - Security Events,UK Trade & Investment - Defence and Security Organisation,ROYAL GARDEN HOTEL,147046," 1,420.97 "
UK Trade and Investment Programme,UK Trade and Investment Programme,06/05/2011 ,Rental of Accomodation - Security Events,UK Trade & Investment - Defence and Security Organisation,ROYAL GARDEN HOTEL,147047," 1,017.50 "
UK Trade and Investment Programme,UK Trade and Investment Programme,06/05/2011 ,Rental of Accomodation - Security Events,UK Trade & Investment - Defence and Security Organisation,ROYAL GARDEN HOTEL,147048, 676.96 
UK Trade and Investment Programme,UK Trade and Investment Programme,06/05/2011 ,Rental of Accomodation - Security Events,UK Trade & Investment - Defence and Security Organisation,ROYAL GARDEN HOTEL,147049," 1,936.50 "
UK Trade and Investment Programme,UK Trade and Investment Programme,06/05/2011 ,Rental of Accomodation - Security Events,UK Trade & Investment - Defence and Security Organisation,ROYAL GARDEN HOTEL,147050, 976.40 
UK Trade and Investment Programme,UK Trade and Investment Programme,06/05/2011 ,Rental of Accomodation - Security Events,UK Trade & Investment - Defence and Security Organisation,ROYAL GARDEN HOTEL,147050, (976.40)
UK Trade and Investment Programme,UK Trade and Investment Programme,06/05/2011 ,Rental of Accomodation - Security Events,UK Trade & Investment - Defence and Security Organisation,ROYAL GARDEN HOTEL,147050, 974.00 
UK Trade and Investment Programme,UK Trade and Investment Programme,06/05/2011 ,Rental of Accomodation - Security Events,UK Trade & Investment - Defence and Security Organisation,ROYAL GARDEN HOTEL,147050, 2.00 
UK Trade and Investment Programme,UK Trade and Investment Programme,06/05/2011 ,Rental of Accomodation - Security Events,UK Trade & Investment - Defence and Security Organisation,ROYAL GARDEN HOTEL,147051, 997.50 
UK Trade and Investment Programme,UK Trade and Investment Programme,06/05/2011 ,Rental of Accomodation - Security Events,UK Trade & Investment - Defence and Security Organisation,ROYAL GARDEN HOTEL,147051, 2.00 
UK Trade and Investment Programme,UK Trade and Investment Programme,06/05/2011 ,Rental of Accomodation - Security Events,UK Trade & Investment - Defence and Security Organisation,ROYAL GARDEN HOTEL,147053, 751.25 
UK Trade and Investment Programme,UK Trade and Investment Programme,06/05/2011 ,Rental of Accomodation - Security Events,UK Trade & Investment - Defence and Security Organisation,ROYAL GARDEN HOTEL,147054," 1,343.20 "
UK Trade and Investment Programme,UK Trade and Investment Programme,06/05/2011 ,Rental of Accomodation - Security Events,UK Trade & Investment - Defence and Security Organisation,ROYAL GARDEN HOTEL,147054, 6.00 
UK Trade and Investment Programme,UK Trade and Investment Programme,06/05/2011 ,Rental of Accomodation - Security Events,UK Trade & Investment - Defence and Security Organisation,ROYAL GARDEN HOTEL,147055, 775.75 
UK Trade and Investment Programme,UK Trade and Investment Programme,06/05/2011 ,Rental of Accomodation - Security Events,UK Trade & Investment - Defence and Security Organisation,ROYAL GARDEN HOTEL,147056, 759.00 
UK Trade and Investment Programme,UK Trade and Investment Programme,06/05/2011 ,Rental of Accomodation - Security Events,UK Trade & Investment - Defence and Security Organisation,ROYAL GARDEN HOTEL,147056, 1.50 
UK Trade and Investment Programme,UK Trade and Investment Programme,06/05/2011 ,Rental of Accomodation - Security Events,UK Trade & Investment - Defence and Security Organisation,ROYAL GARDEN HOTEL,147058," 1,798.66 "
UK Trade and Investment Programme,UK Trade and Investment Programme,06/05/2011 ,Rental of Accomodation - Security Events,UK Trade & Investment - Defence and Security Organisation,ROYAL GARDEN HOTEL,147059," 1,591.90 "
UK Trade and Investment Programme,UK Trade and Investment Programme,06/05/2011 ,Rental of Accomodation - Security Events,UK Trade & Investment - Defence and Security Organisation,ROYAL GARDEN HOTEL,147060," 1,463.18 "
UK Trade and Investment Programme,UK Trade and Investment Programme,06/05/2011 ,Rental of Accomodation - Security Events,UK Trade & Investment - Defence and Security Organisation,ROYAL GARDEN HOTEL,147061, 29.86 
UK Trade and Investment Programme,UK Trade and Investment Programme,06/05/2011 ,Rental of Accomodation - Security Events,UK Trade & Investment - Defence and Security Organisation,ROYAL GARDEN HOTEL,147063," 1,307.86 "
UK Trade and Investment Programme,UK Trade and Investment Programme,06/05/2011 ,Rental of Accomodation - Security Events,UK Trade & Investment - Defence and Security Organisation,ROYAL GARDEN HOTEL,147064," 1,183.36 "
UK Trade and Investment Programme,UK Trade and Investment Programme,06/05/2011 ,Rental of Accomodation - Security Events,UK Trade & Investment - Defence and Security Organisation,ROYAL GARDEN HOTEL,147065," 1,230.70 "
UK Trade and Investment Programme,UK Trade and Investment Programme,06/05/2011 ,Rental of Accomodation - Security Events,UK Trade & Investment - Defence and Security Organisation,ROYAL GARDEN HOTEL,147066," 1,115.75 "
UK Trade and Investment Programme,UK Trade and Investment Programme,06/05/2011 ,Rental of Accomodation - Security Events,UK Trade & Investment - Defence and Security Organisation,ROYAL GARDEN HOTEL,147067," 1,679.00 "
UK Trade and Investment Programme,UK Trade and Investment Programme,06/05/2011 ,Rental of Accomodation - Security Events,UK Trade & Investment - Defence and Security Organisation,ROYAL GARDEN HOTEL,147068," 1,082.50 "
UK Trade and Investment Programme,UK Trade and Investment Programme,06/05/2011 ,Rental of Accomodation - Security Events,UK Trade & Investment - Defence and Security Organisation,ROYAL GARDEN HOTEL,147069, 874.25 
UK Trade and Investment Programme,UK Trade and Investment Programme,06/05/2011 ,Rental of Accomodation - Security Events,UK Trade & Investment - Defence and Security Organisation,ROYAL GARDEN HOTEL,147071," 1,093.00 "
UK Trade and Investment Programme,UK Trade and Investment Programme,06/05/2011 ,Rental of Accomodation - Security Events,UK Trade & Investment - Defence and Security Organisation,ROYAL GARDEN HOTEL,147072," 1,062.50 "
UK Trade and Investment Programme,UK Trade and Investment Programme,06/05/2011 ,Rental of Accomodation - Security Events,UK Trade & Investment - Defence and Security Organisation,ROYAL GARDEN HOTEL,147074," 1,015.10 "
UK Trade and Investment Programme,UK Trade and Investment Programme,06/05/2011 ,Rental of Accomodation - Security Events,UK Trade & Investment - Defence and Security Organisation,ROYAL GARDEN HOTEL,147076," 1,280.62 "
UK Trade and Investment Programme,UK Trade and Investment Programme,06/05/2011 ,Rental of Accomodation - Security Events,UK Trade & Investment - Defence and Security Organisation,ROYAL GARDEN HOTEL,147077," 1,012.00 "
UK Trade and Investment Programme,UK Trade and Investment Programme,06/05/2011 ,Rental of Accomodation - Security Events,UK Trade & Investment - Defence and Security Organisation,ROYAL GARDEN HOTEL,147078," 1,574.00 "
UK Trade and Investment Programme,UK Trade and Investment Programme,06/05/2011 ,Rental of Accomodation - Security Events,UK Trade & Investment - Defence and Security Organisation,ROYAL GARDEN HOTEL,147080, 909.79 
UK Trade and Investment Programme,UK Trade and Investment Programme,06/05/2011 ,Rental of Accomodation - Security Events,UK Trade & Investment - Defence and Security Organisation,ROYAL GARDEN HOTEL,147083, 710.75 
UK Trade and Investment Programme,UK Trade and Investment Programme,06/05/2011 ,Rental of Accomodation - Security Events,UK Trade & Investment - Defence and Security Organisation,ROYAL GARDEN HOTEL,147085, 847.60 
UK Trade and Investment Programme,UK Trade and Investment Programme,06/05/2011 ,Rental of Accomodation - Security Events,UK Trade & Investment - Defence and Security Organisation,ROYAL GARDEN HOTEL,147086, 758.26 
UK Trade and Investment Programme,UK Trade and Investment Programme,06/05/2011 ,Rental of Accomodation - Security Events,UK Trade & Investment - Defence and Security Organisation,ROYAL GARDEN HOTEL,147087, 763.50 
UK Trade and Investment Programme,UK Trade and Investment Programme,06/05/2011 ,Rental of Accomodation - Security Events,UK Trade & Investment - Defence and Security Organisation,ROYAL GARDEN HOTEL,147088," 1,389.82 "
UK Trade and Investment Programme,UK Trade and Investment Programme,06/05/2011 ,Rental of Accomodation - Security Events,UK Trade & Investment - Defence and Security Organisation,ROYAL GARDEN HOTEL,147089," 1,269.07 "
UK Trade and Investment Programme,UK Trade and Investment Programme,06/05/2011 ,Rental of Accomodation - Security Events,UK Trade & Investment - Defence and Security Organisation,ROYAL GARDEN HOTEL,147091, 998.50 
UK Trade and Investment Programme,UK Trade and Investment Programme,06/05/2011 ,Rental of Accomodation - Security Events,UK Trade & Investment - Defence and Security Organisation,ROYAL GARDEN HOTEL,147092," 1,115.75 "
UK Trade and Investment Programme,UK Trade and Investment Programme,06/05/2011 ,Rental of Accomodation - Security Events,UK Trade & Investment - Defence and Security Organisation,ROYAL GARDEN HOTEL,147094," 1,324.20 "
UK Trade and Investment Programme,UK Trade and Investment Programme,06/05/2011 ,Rental of Accomodation - Security Events,UK Trade & Investment - Defence and Security Organisation,ROYAL GARDEN HOTEL,147095, 993.00 
UK Trade and Investment Programme,UK Trade and Investment Programme,06/05/2011 ,Rental of Accomodation - Security Events,UK Trade & Investment - Defence and Security Organisation,ROYAL GARDEN HOTEL,147096, 19.00 
UK Trade and Investment Programme,UK Trade and Investment Programme,06/05/2011 ,Rental of Accomodation - Security Events,UK Trade & Investment - Defence and Security Organisation,ROYAL GARDEN HOTEL,147126," 1,202.75 "
UK Trade and Investment Programme,UK Trade and Investment Programme,06/05/2011 ,Rental of Accomodation - Security Events,UK Trade & Investment - Defence and Security Organisation,ROYAL GARDEN HOTEL,147126, 247.30 
UK Trade and Investment Programme,UK Trade and Investment Programme,06/05/2011 ,Basic Grants - SESA Solo Support Scheme,UK Trade & Investment - Sectors Group,ROCKFERRY LTD,147155," 1,000.00 "
UK Trade and Investment Programme,UK Trade and Investment Programme,06/05/2011 ,Consultancy - Trade Development Support,UK Trade & Investment - International Group,LEO G FAULKNER,147123, 423.18 
UK Trade and Investment Programme,UK Trade and Investment Programme,06/05/2011 ,Printed Publications - Trade Development Support,UK Trade & Investment - International Group,RYGAARD LTD,147122," 1,218.75 "
UK Trade and Investment Programme,UK Trade and Investment Programme,06/05/2011 ,Event Management - Trade Marketing Events,UK Trade & Investment - Regional Directorate,EAST OF ENGLAND IDB LTD,147128," 12,574.37 "
UK Trade and Investment Programme,UK Trade and Investment Programme,06/05/2011 ,Event Management - Trade Marketing Events,UK Trade & Investment - Regional Directorate,EAST OF ENGLAND IDB LTD,147142, 632.15 
UK Trade and Investment Programme,UK Trade and Investment Programme,06/05/2011 ,Event Management - Trade Marketing Events,UK Trade & Investment - Regional Directorate,EAST OF ENGLAND IDB LTD,147148," 12,000.00 "
UK Trade and Investment Programme,UK Trade and Investment Programme,06/05/2011 ,Event Management - Trade Marketing Events,UK Trade & Investment - Regional Directorate,EAST OF ENGLAND IDB LTD,147161," 2,722.99 "
UK Trade and Investment Programme,UK Trade and Investment Programme,06/05/2011 ,Printed Publications - Trade Marketing Events,UK Trade & Investment - Defence and Security Organisation,RED STONE DESIGN LTD,147105," 1,115.00 "
UK Trade and Investment Programme,UK Trade and Investment Programme,06/05/2011 ,Printed Publications - Trade Marketing Events,UK Trade & Investment - Defence and Security Organisation,RED STONE DESIGN LTD,147106," 1,115.00 "
UK Trade and Investment Programme,UK Trade and Investment Programme,06/05/2011 ,Printed Publications - Trade Marketing Events,UK Trade & Investment - Defence and Security Organisation,RED STONE DESIGN LTD,147107," 1,115.00 "
UK Trade and Investment Programme,UK Trade and Investment Programme,06/05/2011 ,Printed Publications - Trade Marketing Events,UK Trade & Investment - Defence and Security Organisation,RED STONE DESIGN LTD,147109, 492.50 
UK Trade and Investment Programme,UK Trade and Investment Programme,06/05/2011 ,Printed Publications - Trade Marketing Events,UK Trade & Investment - Defence and Security Organisation,RED STONE DESIGN LTD,147110," 1,216.50 "
UK Trade and Investment Programme,UK Trade and Investment Programme,06/05/2011 ,Printed Publications - Trade Marketing Events,UK Trade & Investment - Defence and Security Organisation,RED STONE DESIGN LTD,147111, 580.50 
UK Trade and Investment Programme,UK Trade and Investment Programme,06/05/2011 ,Printed Publications - Trade Marketing Events,UK Trade & Investment - Defence and Security Organisation,RED STONE DESIGN LTD,147112," 1,115.00 "
UK Trade and Investment Programme,UK Trade and Investment Programme,06/05/2011 ,Printed Publications - Trade Marketing Events,UK Trade & Investment - Defence and Security Organisation,RED STONE DESIGN LTD,147113," 1,115.00 "
UK Trade and Investment Programme,UK Trade and Investment Programme,06/05/2011 ,Printed Publications - Trade Marketing Events,UK Trade & Investment - Defence and Security Organisation,RED STONE DESIGN LTD,147114," 1,115.00 "
UK Trade and Investment Programme,UK Trade and Investment Programme,06/05/2011 ,Printed Publications - Trade Marketing Events,UK Trade & Investment - Defence and Security Organisation,RED STONE DESIGN LTD,147115, 870.00 
UK Trade and Investment Programme,UK Trade and Investment Programme,06/05/2011 ,Printed Publications - Trade Marketing Events,UK Trade & Investment - Defence and Security Organisation,RED STONE DESIGN LTD,147116, 986.00 
UK Trade and Investment Programme,UK Trade and Investment Programme,06/05/2011 ,Printed Publications - Trade Marketing Events,UK Trade & Investment - Defence and Security Organisation,RED STONE DESIGN LTD,147117," 1,115.00 "
UK Trade and Investment Programme,UK Trade and Investment Programme,06/05/2011 ,Printed Publications - Trade Marketing Events,UK Trade & Investment - Defence and Security Organisation,RED STONE DESIGN LTD,147118, 658.00 
UK Trade and Investment Programme,UK Trade and Investment Programme,06/05/2011 ,Research and Development Costs - Trade Marketing Events,UK Trade & Investment - Regional Directorate,EAST OF ENGLAND IDB LTD,147147," 2,000.00 "
UK Trade and Investment Programme,UK Trade and Investment Programme,06/05/2011 ,Scheme Management Charges - Trade Marketing Events,UK Trade & Investment - Regional Directorate,EAST OF ENGLAND IDB LTD,147147," 3,000.00 "
UK Trade and Investment Programme,UK Trade and Investment Programme,06/05/2011 ,Scheme Management Charges - Trade Marketing Events,UK Trade & Investment - Regional Directorate,EAST OF ENGLAND IDB LTD,147152, 300.00 
UK Trade and Investment Programme,UK Trade and Investment Programme,06/05/2011 ,Speakers fees - Trade Marketing Events,UK Trade & Investment - Regional Directorate,EAST OF ENGLAND IDB LTD,147151, 306.00 
UK Trade and Investment Programme,UK Trade and Investment Programme,06/05/2011 ,Telemarketing - Trade Marketing Events,UK Trade & Investment - Regional Directorate,EAST OF ENGLAND IDB LTD,147160, 234.00 
UK Trade and Investment Programme,UK Trade and Investment Programme,06/05/2011 ,Travel and Subsistence O'seas - Trade Marketing Events,UK Trade & Investment - Regional Directorate,ULTRACHEM LTD,147075," 1,000.00 "
UK Trade and Investment Programme,UK Trade and Investment Programme,06/05/2011 ,Venue Hire - Trade Marketing Events,UK Trade & Investment - Regional Directorate,EAST OF ENGLAND IDB LTD,147141, 484.50 
UK Trade and Investment Programme,UK Trade and Investment Programme,06/05/2011 ,Venue Hire - Trade Marketing Events,UK Trade & Investment - Regional Directorate,EAST OF ENGLAND IDB LTD,147153," 1,267.20 "
UK Trade and Investment Programme,UK Trade and Investment Programme,06/05/2011 ,Basic Grants - Trade Show Access Programme,UK Trade & Investment - Sectors Group,PROCESSING & PACKAGING MACHINERY ASSOCIATION,147120," 1,400.00 "
UK Trade and Investment Programme,UK Trade and Investment Programme,06/05/2011 ,Event Management - Trade Show Access Programme,UK Trade & Investment - Sectors Group,MESSE FRANKFURT EXHIBITION GMBH,146726," 7,673.61 "
UK Trade and Investment Programme,UK Trade and Investment Programme,06/05/2011 ,Sponsors Grants - Trade Show Access Programme,UK Trade & Investment - Sectors Group,PROCESSING & PACKAGING MACHINERY ASSOCIATION,147121, 240.00 
UK Trade and Investment Programme,UK Trade and Investment Programme,06/05/2011 ,Sponsors Grants - UKIBC UK India Business Council,UK Trade & Investment - International Group,UK INDIA BUSINESS COUNCIL,147097," 166,666.00 "
UK Trade and Investment Programme,UK Trade and Investment Programme,06/05/2011 ,Video Production Services - UKTI Corporate Marketing,UK Trade & Investment - Marketing & Communications Group,STANLEY PRODUCTIONS LTD,146846, 483.80 
UK Trade and Investment Programme,UK Trade and Investment Programme,09/05/2011 ,Training - General - Assessment & Development Centres,UK Trade & Investment - Regional Directorate,QED CONSULTING,147197," 7,740.00 "
UK Trade and Investment Programme,UK Trade and Investment Programme,09/05/2011 ,Travel and Subsistence UK - ,UK Trade & Investment - Defence and Security Organisation,WASHINGTON MAYFAIR HOTEL,147185, 768.00 
UK Trade and Investment Programme,UK Trade and Investment Programme,09/05/2011 ,Scheme Management Charges - Export Communications Review,UK Trade & Investment - Regional Directorate,THE BRITISH CHAMBERS OF COMMERCE,147133, 350.00 
UK Trade and Investment Programme,UK Trade and Investment Programme,09/05/2011 ,Scheme Management Charges - Export Communications Review,UK Trade & Investment - Regional Directorate,THE BRITISH CHAMBERS OF COMMERCE,147134, 350.00 
UK Trade and Investment Programme,UK Trade and Investment Programme,09/05/2011 ,Scheme Management Charges - Export Communications Review,UK Trade & Investment - Regional Directorate,THE BRITISH CHAMBERS OF COMMERCE,147135, 350.00 
UK Trade and Investment Programme,UK Trade and Investment Programme,09/05/2011 ,Scheme Management Charges - Export Communications Review,UK Trade & Investment - Regional Directorate,THE BRITISH CHAMBERS OF COMMERCE,147136, 350.00 
UK Trade and Investment Programme,UK Trade and Investment Programme,09/05/2011 ,Scheme Management Charges - Export Communications Review,UK Trade & Investment - Regional Directorate,THE BRITISH CHAMBERS OF COMMERCE,147138, 350.00 
UK Trade and Investment Programme,UK Trade and Investment Programme,09/05/2011 ,Scheme Management Charges - Export Communications Review,UK Trade & Investment - Regional Directorate,THE BRITISH CHAMBERS OF COMMERCE,147139, 350.00 
UK Trade and Investment Programme,UK Trade and Investment Programme,09/05/2011 ,Scheme Management Charges - International Trade Team Contracting,UK Trade & Investment - Regional Directorate,EAST OF ENGLAND IDB LTD,147163," 21,820.22 "
UK Trade and Investment Programme,UK Trade and Investment Programme,09/05/2011 ,Conference and seminar fees - Inward Investment Events,UK Trade & Investment - Business Group,"Personal Expense, Name Witheld",505171, 358.00 
UK Trade and Investment Programme,UK Trade and Investment Programme,09/05/2011 ,Event Management - Inward Missions,UK Trade & Investment - Sectors Group,CLEARVIEW IMAGING SERVICES LTD,147198, 975.00 
UK Trade and Investment Programme,UK Trade and Investment Programme,09/05/2011 ,Travel and Subsistence O'seas - Market Visit Scheme,UK Trade & Investment - Regional Directorate,GWE BUSINESS WEST LTD,147168, 450.00 
UK Trade and Investment Programme,UK Trade and Investment Programme,09/05/2011 ,Travel and Subsistence O'seas - Market Visit Scheme,UK Trade & Investment - Regional Directorate,GWE BUSINESS WEST LTD,147169, 600.00 
UK Trade and Investment Programme,UK Trade and Investment Programme,09/05/2011 ,Travel and Subsistence O'seas - Market Visit Scheme,UK Trade & Investment - Regional Directorate,GWE BUSINESS WEST LTD,147170, 450.00 
UK Trade and Investment Programme,UK Trade and Investment Programme,09/05/2011 ,Travel and Subsistence O'seas - Market Visit Scheme,UK Trade & Investment - Regional Directorate,GWE BUSINESS WEST LTD,147170, 200.00 
UK Trade and Investment Programme,UK Trade and Investment Programme,09/05/2011 ,Travel and Subsistence O'seas - Market Visit Scheme,UK Trade & Investment - Regional Directorate,GWE BUSINESS WEST LTD,147170, 90.00 
UK Trade and Investment Programme,UK Trade and Investment Programme,09/05/2011 ,Travel and Subsistence O'seas - Market Visit Scheme,UK Trade & Investment - Regional Directorate,GWE BUSINESS WEST LTD,147171, 600.00 
UK Trade and Investment Programme,UK Trade and Investment Programme,09/05/2011 ,Travel and Subsistence O'seas - Market Visit Scheme,UK Trade & Investment - Regional Directorate,GWE BUSINESS WEST LTD,147172, 500.00 
UK Trade and Investment Programme,UK Trade and Investment Programme,09/05/2011 ,Travel and Subsistence O'seas - Market Visit Scheme,UK Trade & Investment - Regional Directorate,GWE BUSINESS WEST LTD,147172, 90.00 
UK Trade and Investment Programme,UK Trade and Investment Programme,09/05/2011 ,Travel and Subsistence O'seas - Market Visit Scheme,UK Trade & Investment - Regional Directorate,GWE BUSINESS WEST LTD,147173, 200.00 
UK Trade and Investment Programme,UK Trade and Investment Programme,09/05/2011 ,Travel and Subsistence O'seas - Market Visit Scheme,UK Trade & Investment - Regional Directorate,GWE BUSINESS WEST LTD,147174, 200.00 
UK Trade and Investment Programme,UK Trade and Investment Programme,09/05/2011 ,Travel and Subsistence O'seas - Market Visit Scheme,UK Trade & Investment - Regional Directorate,GWE BUSINESS WEST LTD,147174, 200.00 
UK Trade and Investment Programme,UK Trade and Investment Programme,09/05/2011 ,Travel and Subsistence O'seas - Market Visit Scheme,UK Trade & Investment - Regional Directorate,GWE BUSINESS WEST LTD,147175, 200.00 
UK Trade and Investment Programme,UK Trade and Investment Programme,09/05/2011 ,Travel and Subsistence O'seas - Market Visit Scheme,UK Trade & Investment - Regional Directorate,GWE BUSINESS WEST LTD,147175, 500.00 
UK Trade and Investment Programme,UK Trade and Investment Programme,09/05/2011 ,Travel and Subsistence O'seas - Market Visit Scheme,UK Trade & Investment - Regional Directorate,GWE BUSINESS WEST LTD,147176, 750.00 
UK Trade and Investment Programme,UK Trade and Investment Programme,09/05/2011 ,Travel and Subsistence O'seas - Market Visit Scheme,UK Trade & Investment - Regional Directorate,GWE BUSINESS WEST LTD,147176, 500.00 
UK Trade and Investment Programme,UK Trade and Investment Programme,09/05/2011 ,Travel and Subsistence O'seas - Market Visit Scheme,UK Trade & Investment - Regional Directorate,BUSINESS AND ENTERPRISE NORTH EAST LTD,147180, 200.00 
UK Trade and Investment Programme,UK Trade and Investment Programme,09/05/2011 ,Travel and Subsistence O'seas - Market Visit Scheme,UK Trade & Investment - Regional Directorate,WITT & SON UK LTD T/A WITT UK GROUP,147204, 200.00 
UK Trade and Investment Programme,UK Trade and Investment Programme,09/05/2011 ,Travel and Subsistence O'seas - Market Visit Scheme,UK Trade & Investment - Regional Directorate,WITT & SON UK LTD T/A WITT UK GROUP,147204, 60.00 
UK Trade and Investment Programme,UK Trade and Investment Programme,09/05/2011 ,Travel and Subsistence O'seas - Market Visit Scheme,UK Trade & Investment - Regional Directorate,REAL WORLD GROUP LTD,147205, 860.00 
UK Trade and Investment Programme,UK Trade and Investment Programme,09/05/2011 ,Travel and Subsistence O'seas - Market Visit Scheme,UK Trade & Investment - Regional Directorate,REAL WORLD GROUP LTD,147205, 110.00 
UK Trade and Investment Programme,UK Trade and Investment Programme,09/05/2011 ,Event Management - NINJ Sector Events,UK Trade & Investment - Sectors Group,MEDILINK (YORKSHIRE AND HUMBER) LTD,147194," 3,720.00 "
UK Trade and Investment Programme,UK Trade and Investment Programme,09/05/2011 ,Venue Hire - Passport Development & Events,UK Trade & Investment - Regional Directorate,HOLIDAY INN,147162," 1,833.33 "
UK Trade and Investment Programme,UK Trade and Investment Programme,09/05/2011 ,Venue Hire - Passport Development & Events,UK Trade & Investment - Regional Directorate,HOLIDAY INN,147162, 375.00 
UK Trade and Investment Programme,UK Trade and Investment Programme,09/05/2011 ,Research and Development Costs - Performance Measurement,UK Trade & Investment - Economics and Evaluation,OMB RESEARCH LTD,147202," 2,353.20 "
UK Trade and Investment Programme,UK Trade and Investment Programme,09/05/2011 ,Event Management - Sector Events - Abroad,UK Trade & Investment - Sectors Group,CHINA BRITAIN BUSINESS COUNCIL,147125," 2,500.00 "
UK Trade and Investment Programme,UK Trade and Investment Programme,09/05/2011 ,Other Transportation Hire - Sector Events - UK,UK Trade & Investment - Sectors Group,PRESTIGE CAR HIRE LTD T/A TST CAR SERVICES,147073, 189.00 
UK Trade and Investment Programme,UK Trade and Investment Programme,09/05/2011 ,Other Transportation Hire - Sector Events - UK,UK Trade & Investment - Sectors Group,PRESTIGE CAR HIRE LTD T/A TST CAR SERVICES,147073, (189.00)
UK Trade and Investment Programme,UK Trade and Investment Programme,09/05/2011 ,Other Transportation Hire - Sector Events - UK,UK Trade & Investment - Sectors Group,PRESTIGE CAR HIRE LTD T/A TST CAR SERVICES,147073, 84.00 
UK Trade and Investment Programme,UK Trade and Investment Programme,09/05/2011 ,Other Transportation Hire - Sector Events - UK,UK Trade & Investment - Sectors Group,PRESTIGE CAR HIRE LTD T/A TST CAR SERVICES,147073, 105.00 
UK Trade and Investment Programme,UK Trade and Investment Programme,09/05/2011 ,Travel and Subsistence UK - Sector Events - UK,UK Trade & Investment - Sectors Group,WIDEBLUE LTD,147186, 492.39 
UK Trade and Investment Programme,UK Trade and Investment Programme,09/05/2011 ,Rental of Accomodation - Security Events,UK Trade & Investment - Defence and Security Organisation,ROYAL GARDEN HOTEL,147070," 1,164.60 "
UK Trade and Investment Programme,UK Trade and Investment Programme,09/05/2011 ,Rental of Accomodation - Security Events,UK Trade & Investment - Defence and Security Organisation,ROYAL GARDEN HOTEL,147070, 30.00 
UK Trade and Investment Programme,UK Trade and Investment Programme,09/05/2011 ,Rental of Accomodation - Security Events,UK Trade & Investment - Defence and Security Organisation,ROYAL GARDEN HOTEL,147070, 36.00 
UK Trade and Investment Programme,UK Trade and Investment Programme,09/05/2011 ,Basic Grants - SESA Solo Support Scheme,UK Trade & Investment - Sectors Group,ALEX MACMASTER T/A MACMASTER DESIGN,147191," 1,000.00 "
UK Trade and Investment Programme,UK Trade and Investment Programme,09/05/2011 ,Basic Grants - SESA Solo Support Scheme,UK Trade & Investment - Sectors Group,ANGLO LEATHER CRAFT LTD,147192," 1,000.00 "
UK Trade and Investment Programme,UK Trade and Investment Programme,09/05/2011 ,Design Services - Trade Marketing Events,UK Trade & Investment - Regional Directorate,BEACH DESIGN LTD,147179, 635.00 
UK Trade and Investment Programme,UK Trade and Investment Programme,09/05/2011 ,Equipment Hire - Trade Marketing Events,UK Trade & Investment - Defence and Security Organisation,GRAVOGRAPH LTD,147196, 20.31 
UK Trade and Investment Programme,UK Trade and Investment Programme,09/05/2011 ,Event Management - Trade Marketing Events,UK Trade & Investment - Regional Directorate,EAST OF ENGLAND IDB LTD,147166, 627.73 
UK Trade and Investment Programme,UK Trade and Investment Programme,09/05/2011 ,Speakers fees - Trade Marketing Events,UK Trade & Investment - Regional Directorate,EAST OF ENGLAND IDB LTD,147165, 459.31 
UK Trade and Investment Programme,UK Trade and Investment Programme,09/05/2011 ,Stand Construction Costs - Trade Marketing Events,UK Trade & Investment - Defence and Security Organisation,EDGE EXHIBITION DESIGN LTD,147177," 3,186.00 "
UK Trade and Investment Programme,UK Trade and Investment Programme,09/05/2011 ,Design Services - Trade Marketing Publication,UK Trade & Investment - Marketing & Communications Group,THE TEAM BRAND COMMUNICATION CONSULTANTS LTD,147199," 4,800.00 "
UK Trade and Investment Programme,UK Trade and Investment Programme,09/05/2011 ,Basic Grants - Trade Show Access Programme,UK Trade & Investment - Sectors Group,UK FASHION AND TEXTILE ASSOCIATION LTD (UKFT),147190," 9,000.00 "
UK Trade and Investment Programme,UK Trade and Investment Programme,09/05/2011 ,Basic Grants - Trade Show Access Programme,UK Trade & Investment - Sectors Group,THE BRITISH SECURITY INDUSTRY ASSOCIATION LTD,147200," 7,200.00 "
UK Trade and Investment Programme,UK Trade and Investment Programme,09/05/2011 ,Sponsors Grants - Trade Show Access Programme,UK Trade & Investment - Sectors Group,THE BRITISH SECURITY INDUSTRY ASSOCIATION LTD,147201, 960.00 
UK Trade and Investment Programme,UK Trade and Investment Programme,09/05/2011 ,Video Production Services - UKTI Corporate Marketing,UK Trade & Investment - Marketing & Communications Group,@VOYTEK LTD,147188," 2,393.00 "
UK Trade and Investment Programme,UK Trade and Investment Programme,09/05/2011 ,Video Production Services - UKTI Corporate Marketing,UK Trade & Investment - Marketing & Communications Group,S K & E S MAHER T/A SKM PRODUCTIONS,147189, 40.00 
UK Trade and Investment Programme,UK Trade and Investment Programme,10/05/2011 ,Car Hire and Leasing - ,UK Trade & Investment - Defence and Security Organisation,"ABBEY TAXIS LTD (BATH, CHIPPENHAM)",147214, 237.50 
UK Trade and Investment Programme,UK Trade and Investment Programme,10/05/2011 ,Car Hire and Leasing - ,UK Trade & Investment - Defence and Security Organisation,ANDREW DUBBERLEY & AMANDA MOORE T/A ADS ASSOCIATES,147215, 282.70 
UK Trade and Investment Programme,UK Trade and Investment Programme,10/05/2011 ,Scheme Management Charges - ,UK Trade & Investment - Defence and Security Organisation,PAUL WILLIAMS,147220," 7,906.01 "
UK Trade and Investment Programme,UK Trade and Investment Programme,10/05/2011 ,Scheme Management Charges - Export Communications Review,UK Trade & Investment - Regional Directorate,THE BRITISH CHAMBERS OF COMMERCE,147143, 350.00 
UK Trade and Investment Programme,UK Trade and Investment Programme,10/05/2011 ,Scheme Management Charges - International Trade Team Contracting,UK Trade & Investment - Regional Directorate,Y & H IDB LTD T/A BUSINESS LINK YORKSHIRE,147219," 120,248.00 "
UK Trade and Investment Programme,UK Trade and Investment Programme,10/05/2011 ,Media and Press Services - Inward Investment Publicity,UK Trade & Investment - Marketing & Communications Group,PRECISE MEDIA MONITORING LTD,147206," 1,312.58 "
UK Trade and Investment Programme,UK Trade and Investment Programme,10/05/2011 ,Travel and Subsistence O'seas - Inward Investment Publicity,UK Trade & Investment - Marketing & Communications Group,YOSHINORI ICHIKAWA,147119," 1,781.23 "
UK Trade and Investment Programme,UK Trade and Investment Programme,10/05/2011 ,Travel and Subsistence O'seas - Inward Investment Publicity,UK Trade & Investment - Marketing & Communications Group,WILL STEWART,147216, 388.96 
UK Trade and Investment Programme,UK Trade and Investment Programme,10/05/2011 ,Travel and Subsistence O'seas - Market Visit Scheme,UK Trade & Investment - Regional Directorate,ENVIROCAT LTD (A SUBSIDIARY OF MMS SHIP REPAIR & DRY DOCK CO LTD),147211, 860.00 
UK Trade and Investment Programme,UK Trade and Investment Programme,10/05/2011 ,Travel and Subsistence O'seas - Market Visit Scheme,UK Trade & Investment - Regional Directorate,JOHN FOSTER (1819) LTD,147218, 400.00 
UK Trade and Investment Programme,UK Trade and Investment Programme,10/05/2011 ,Design Services - Marketing the Olympics,UK Trade & Investment - Marketing & Communications Group,BELLMAN MEDIA LTD,146878, 84.00 
UK Trade and Investment Programme,UK Trade and Investment Programme,10/05/2011 ,Travel and Subsistence O'seas - NINJ Sector Events Abroad,UK Trade & Investment - Strategy and Human Resources Group,FOREIGN AND COMMONWEALTH OFFICE (FCO),147225, 197.82 
UK Trade and Investment Programme,UK Trade and Investment Programme,10/05/2011 ,Scheme Management Charges - Passport Business Development Credits,UK Trade & Investment - Regional Directorate,BSSHSE LTD T/A BRITISH SAFETY SERVICES,146998," 1,500.00 "
UK Trade and Investment Programme,UK Trade and Investment Programme,10/05/2011 ,Scheme Management Charges - Passport Business Development Credits,UK Trade & Investment - Regional Directorate,QED SCIENTIFIC LTD,146999, 565.53 
UK Trade and Investment Programme,UK Trade and Investment Programme,10/05/2011 ,Scheme Management Charges - Passport Business Development Credits,UK Trade & Investment - Regional Directorate,APEX HYDRAULICS LTD,147032," 1,500.00 "
UK Trade and Investment Programme,UK Trade and Investment Programme,10/05/2011 ,Scheme Management Charges - Passport Business Development Credits,UK Trade & Investment - Regional Directorate,FUN CREW LTD,147033," 1,500.00 "
UK Trade and Investment Programme,UK Trade and Investment Programme,10/05/2011 ,Scheme Management Charges - Passport Business Development Credits,UK Trade & Investment - Regional Directorate,ESSKA DESIGN LTD,147035, 265.00 
UK Trade and Investment Programme,UK Trade and Investment Programme,10/05/2011 ,Scheme Management Charges - Passport Business Development Credits,UK Trade & Investment - Regional Directorate,PROSELL LEARNING LTD,147036, 500.50 
UK Trade and Investment Programme,UK Trade and Investment Programme,10/05/2011 ,Catering - Passport Development & Events,UK Trade & Investment - Regional Directorate,BUSINESS AND ENTERPRISE NORTH EAST LTD,147213, 155.00 
UK Trade and Investment Programme,UK Trade and Investment Programme,10/05/2011 ,Travel and Subsistence O'seas - Passport Development & Events,UK Trade & Investment - Regional Directorate,SPIRIT SSR LTD (SCHOOL OF SOUND RECORDING),147212, 500.00 
UK Trade and Investment Programme,UK Trade and Investment Programme,10/05/2011 ,Event Management - Sector Events - UK,UK Trade & Investment - Sectors Group,REED EXHIBITIONS LTD,147208," 3,300.00 "
UK Trade and Investment Programme,UK Trade and Investment Programme,10/05/2011 ,Translation/Interpretation services - Sector Events - UK,UK Trade & Investment - Sectors Group,FCO SERVICES,147234," 3,650.20 "
UK Trade and Investment Programme,UK Trade and Investment Programme,10/05/2011 ,Translation/Interpretation services - Sector Events - UK,UK Trade & Investment - Sectors Group,FCO SERVICES,147234," 1,071.65 "
UK Trade and Investment Programme,UK Trade and Investment Programme,10/05/2011 ,Research and Development Costs - Study of Benefit of Trade & Investment,UK Trade & Investment - Economics and Evaluation,RICHARD UPWARD,147221, 750.00 
UK Trade and Investment Programme,UK Trade and Investment Programme,10/05/2011 ,Event Management - Trade Marketing Events,UK Trade & Investment - Regional Directorate,EAST OF ENGLAND IDB LTD,147159," 1,201.20 "
UK Trade and Investment Programme,UK Trade and Investment Programme,10/05/2011 ,Event Management - Trade Marketing Events,UK Trade & Investment - Regional Directorate,EAST OF ENGLAND IDB LTD,147183, 193.90 
UK Trade and Investment Programme,UK Trade and Investment Programme,10/05/2011 ,Travel and Subsistence O'seas - Trade Marketing Events,UK Trade & Investment - Regional Directorate,THE CHAMBERS OF GEORGE BOMPAS QC,146870, 750.00 
UK Trade and Investment Programme,UK Trade and Investment Programme,10/05/2011 ,Basic Grants - Trade Show Access Programme,UK Trade & Investment - Sectors Group,ENGINEERING INDUSTRIES ASSOCIATION,147209," 7,000.00 "
UK Trade and Investment Programme,UK Trade and Investment Programme,10/05/2011 ,Sponsors Grants - Trade Show Access Programme,UK Trade & Investment - Sectors Group,ENGINEERING INDUSTRIES ASSOCIATION,147210," 1,680.00 "
UK Trade and Investment Programme,UK Trade and Investment Programme,11/05/2011 ,Event Management - Attracting Global Entrepreneurs,UK Trade & Investment - Business Group,WHITE BULL SUMMITS GMBH,147207," 9,500.00 "
UK Trade and Investment Programme,UK Trade and Investment Programme,11/05/2011 ,Development Cost - Website (AUC) - Clearing Account - ,UK Trade & Investment - IT and Finance Group,PARASOL LTD,147222," 6,048.00 "
UK Trade and Investment Programme,UK Trade and Investment Programme,11/05/2011 ,Scheme Management Charges - Export Communications Review,UK Trade & Investment - Regional Directorate,THE BRITISH CHAMBERS OF COMMERCE,147238, 350.00 
UK Trade and Investment Programme,UK Trade and Investment Programme,11/05/2011 ,Scheme Management Charges - International Trade Team Contracting,UK Trade & Investment - Regional Directorate,RUSSELL BUSINESS SERVICES LTD,147248," 5,040.00 "
UK Trade and Investment Programme,UK Trade and Investment Programme,11/05/2011 ,Travel and Subsistence UK - International Trade Team Contracting,UK Trade & Investment - Regional Directorate,RUSSELL BUSINESS SERVICES LTD,147248, 540.58 
UK Trade and Investment Programme,UK Trade and Investment Programme,11/05/2011 ,Travel and Subsistence O'seas - Market Visit Scheme,UK Trade & Investment - Regional Directorate,CAMBIVAC LTD,147318, 600.00 
UK Trade and Investment Programme,UK Trade and Investment Programme,11/05/2011 ,Travel and Subsistence O'seas - Market Visit Scheme,UK Trade & Investment - Regional Directorate,KIELY ROWAN PLC,147322, 600.00 
UK Trade and Investment Programme,UK Trade and Investment Programme,11/05/2011 ,Travel and Subsistence O'seas - Market Visit Scheme,UK Trade & Investment - Regional Directorate,GREENBANK TEROTECH LTD,147326, 300.00 
UK Trade and Investment Programme,UK Trade and Investment Programme,11/05/2011 ,Travel and Subsistence O'seas - Market Visit Scheme,UK Trade & Investment - Regional Directorate,ACUNU LTD,147329, 500.00 
UK Trade and Investment Programme,UK Trade and Investment Programme,11/05/2011 ,Travel and Subsistence O'seas - Market Visit Scheme,UK Trade & Investment - Regional Directorate,C B FROST & CO LTD,147336, 550.00 
UK Trade and Investment Programme,UK Trade and Investment Programme,11/05/2011 ,Travel and Subsistence O'seas - Market Visit Scheme,UK Trade & Investment - Regional Directorate,YOGAMASTI,147341, 200.00 
UK Trade and Investment Programme,UK Trade and Investment Programme,11/05/2011 ,Advertising - Passport Development & Events,UK Trade & Investment - Regional Directorate,BUSINESS AND ENTERPRISE NORTH EAST LTD,147239," 7,655.95 "
UK Trade and Investment Programme,UK Trade and Investment Programme,11/05/2011 ,Event Management - Passport Development & Events,UK Trade & Investment - Regional Directorate,BUSINESS AND ENTERPRISE NORTH EAST LTD,147239," 4,990.91 "
UK Trade and Investment Programme,UK Trade and Investment Programme,11/05/2011 ,Training - General - Passport Development & Events,UK Trade & Investment - Regional Directorate,BUSINESS AND ENTERPRISE NORTH EAST LTD,147239," 9,000.00 "
UK Trade and Investment Programme,UK Trade and Investment Programme,11/05/2011 ,Event Management - Sector Events - UK,UK Trade & Investment - Sectors Group,PLAYGEN LTD,147245," 1,200.00 "
UK Trade and Investment Programme,UK Trade and Investment Programme,11/05/2011 ,Event Management - Sector Events - UK,UK Trade & Investment - Sectors Group,BRACKEN PRESENTATIONS LTD,147250," 4,567.50 "
UK Trade and Investment Programme,UK Trade and Investment Programme,11/05/2011 ,Basic Grants - SESA Solo Support Scheme,UK Trade & Investment - Sectors Group,REPROQUEST UK LTD,146825," 1,000.00 "
UK Trade and Investment Programme,UK Trade and Investment Programme,11/05/2011 ,Basic Grants - SESA Solo Support Scheme,UK Trade & Investment - Sectors Group,GLOBALBAGTAG.COM LTD,147240," 1,000.00 "
UK Trade and Investment Programme,UK Trade and Investment Programme,11/05/2011 ,Basic Grants - SESA Solo Support Scheme,UK Trade & Investment - Sectors Group,THE BRITISH TEXEL SHEEP SOCIETY LTD,147241," 1,000.00 "
UK Trade and Investment Programme,UK Trade and Investment Programme,11/05/2011 ,Basic Grants - SESA Solo Support Scheme,UK Trade & Investment - Sectors Group,TOUGHSTUFF (UK) LTD,147242," 1,000.00 "
UK Trade and Investment Programme,UK Trade and Investment Programme,11/05/2011 ,Basic Grants - SESA Solo Support Scheme,UK Trade & Investment - Sectors Group,BERGIN & BLUNDEN LTD,147293," 1,000.00 "
UK Trade and Investment Programme,UK Trade and Investment Programme,11/05/2011 ,Design Services - Trade Marketing Events,UK Trade & Investment - Marketing & Communications Group,GAMBICA ASSOCIATION LTD,147251, 120.00 
UK Trade and Investment Programme,UK Trade and Investment Programme,11/05/2011 ,Event Management - Trade Marketing Events,UK Trade & Investment - Regional Directorate,MEDILINK (YORKSHIRE AND HUMBER) LTD,147167, 200.00 
UK Trade and Investment Programme,UK Trade and Investment Programme,11/05/2011 ,Event Management - Trade Marketing Events,UK Trade & Investment - Regional Directorate,MEDILINK (YORKSHIRE AND HUMBER) LTD,147167, (200.00)
UK Trade and Investment Programme,UK Trade and Investment Programme,11/05/2011 ,Event Management - Trade Marketing Events,UK Trade & Investment - Regional Directorate,MEDILINK (YORKSHIRE AND HUMBER) LTD,147167, 200.00 
UK Trade and Investment Programme,UK Trade and Investment Programme,11/05/2011 ,Photographic Services - Trade Marketing Events,UK Trade & Investment - Marketing & Communications Group,CRUZ IT LTD T/A CIT DIGITAL,147252, 180.00 
UK Trade and Investment Programme,UK Trade and Investment Programme,11/05/2011 ,Stand Space/rental costs - Trade Marketing Events,UK Trade & Investment - Defence and Security Organisation,ADMINISTRADORA DE ESPACIOS Y EXHIBICIONES S.A.C,147193," 9,360.67 "
UK Trade and Investment Programme,UK Trade and Investment Programme,11/05/2011 ,Stand Space/rental costs - Trade Marketing Events,UK Trade & Investment - Regional Directorate,MEDILINK EAST MIDLANDS,147243, 360.00 
UK Trade and Investment Programme,UK Trade and Investment Programme,11/05/2011 ,Travel and Subsistence O'seas - Trade Marketing Events,UK Trade & Investment - Regional Directorate,APPLIED WEATHER TECHNOLOGY (EUROPE) LTD,147319," 1,000.00 "
UK Trade and Investment Programme,UK Trade and Investment Programme,11/05/2011 ,Travel and Subsistence O'seas - Trade Marketing Events,UK Trade & Investment - Regional Directorate,LONDON INTERNATIONAL STUDY CENTRE LTD,147320, 500.00 
UK Trade and Investment Programme,UK Trade and Investment Programme,11/05/2011 ,Travel and Subsistence O'seas - Trade Marketing Events,UK Trade & Investment - Regional Directorate,OEM GROUP LTD T/A SECURESEAL,147321," 1,000.00 "
UK Trade and Investment Programme,UK Trade and Investment Programme,11/05/2011 ,Travel and Subsistence O'seas - Trade Marketing Events,UK Trade & Investment - Regional Directorate,HUGHES PARTNERSHIP LTD,147323," 1,000.00 "
UK Trade and Investment Programme,UK Trade and Investment Programme,11/05/2011 ,Travel and Subsistence O'seas - Trade Marketing Events,UK Trade & Investment - Regional Directorate,PANCATHAY CONSULTING LTD,147324," 1,000.00 "
UK Trade and Investment Programme,UK Trade and Investment Programme,11/05/2011 ,Travel and Subsistence O'seas - Trade Marketing Events,UK Trade & Investment - Regional Directorate,LANGUAGE IN LONDON LTD,147325, 500.00 
UK Trade and Investment Programme,UK Trade and Investment Programme,11/05/2011 ,Travel and Subsistence O'seas - Trade Marketing Events,UK Trade & Investment - Regional Directorate,HARROW SCHOOL ENTERPRISES LTD,147327, 500.00 
UK Trade and Investment Programme,UK Trade and Investment Programme,11/05/2011 ,Travel and Subsistence O'seas - Trade Marketing Events,UK Trade & Investment - Regional Directorate,WIMBLEDON SCHOOL OF ENGLISH LTD,147328, 500.00 
UK Trade and Investment Programme,UK Trade and Investment Programme,11/05/2011 ,Venue Hire - Trade Marketing Events,UK Trade & Investment - Regional Directorate,THE BUSINESSDESK.COM,147257," 7,500.00 "
UK Trade and Investment Programme,UK Trade and Investment Programme,11/05/2011 ,Photographic Services - Trade Marketing Publication,UK Trade & Investment - Marketing & Communications Group,CRUZ IT LTD T/A CIT DIGITAL,147264, 700.00 
UK Trade and Investment Programme,UK Trade and Investment Programme,11/05/2011 ,Basic Grants - Trade Show Access Programme,UK Trade & Investment - Sectors Group,CONSTRUCTION EQUIPMENT ASSOCIATION,147244," 19,600.00 "
UK Trade and Investment Programme,UK Trade and Investment Programme,11/05/2011 ,Basic Grants - Trade Show Access Programme,UK Trade & Investment - Sectors Group,BRITISH EQUESTRIAN TRADE ASSOCIATION,147289," 35,000.00 "
UK Trade and Investment Programme,UK Trade and Investment Programme,11/05/2011 ,Basic Grants - Trade Show Access Programme,UK Trade & Investment - Sectors Group,BIRMINGHAM CHAMBER OF COMMERCE AND INDUSTRY,147290," 22,000.00 "
UK Trade and Investment Programme,UK Trade and Investment Programme,11/05/2011 ,Sponsors Grants - Trade Show Access Programme,UK Trade & Investment - Sectors Group,BIRMINGHAM CHAMBER OF COMMERCE AND INDUSTRY,147291," 5,280.00 "
UK Trade and Investment Programme,UK Trade and Investment Programme,11/05/2011 ,Sponsors Grants - Trade Show Access Programme,UK Trade & Investment - Sectors Group,BRITISH EQUESTRIAN TRADE ASSOCIATION,147292," 9,000.00 "
UK Trade and Investment Programme,UK Trade and Investment Programme,12/05/2011 ,Travel and Subsistence O'seas - ,UK Trade & Investment - Defence and Security Organisation,FOREIGN AND COMMONWEALTH OFFICE (FCO),146150, 834.23 
UK Trade and Investment Programme,UK Trade and Investment Programme,12/05/2011 ,Travel and Subsistence O'seas - ,UK Trade & Investment - Defence and Security Organisation,FOREIGN AND COMMONWEALTH OFFICE (FCO),146150, 500.00 
UK Trade and Investment Programme,UK Trade and Investment Programme,12/05/2011 ,Translation/Interpretation services - ,UK Trade & Investment - Regional Directorate,FOREIGN AND COMMONWEALTH OFFICE (FCO),146151, 955.99 
UK Trade and Investment Programme,UK Trade and Investment Programme,12/05/2011 ,Other Accomodation costs - ,UK Trade & Investment - Strategy and Human Resources Group,FOREIGN AND COMMONWEALTH OFFICE (FCO),146233, 221.39 
UK Trade and Investment Programme,UK Trade and Investment Programme,12/05/2011 ,Other Accomodation costs - ,UK Trade & Investment - Strategy and Human Resources Group,FOREIGN AND COMMONWEALTH OFFICE (FCO),146233, (221.39)
UK Trade and Investment Programme,UK Trade and Investment Programme,12/05/2011 ,Other Accomodation costs - ,UK Trade & Investment - Strategy and Human Resources Group,FOREIGN AND COMMONWEALTH OFFICE (FCO),146234, 19.00 
UK Trade and Investment Programme,UK Trade and Investment Programme,12/05/2011 ,Other Transportation Hire - ,UK Trade & Investment - Strategy and Human Resources Group,FOREIGN AND COMMONWEALTH OFFICE (FCO),146233, 221.39 
UK Trade and Investment Programme,UK Trade and Investment Programme,12/05/2011 ,Scheme Management Charges - International Trade Team Contracting,UK Trade & Investment - Regional Directorate,SGB ASSOCIATES,147346," 3,120.00 "
UK Trade and Investment Programme,UK Trade and Investment Programme,12/05/2011 ,Speakers fees - International Trade Team Contracting,UK Trade & Investment - Regional Directorate,EAST OF ENGLAND IDB LTD,147127, 197.80 
UK Trade and Investment Programme,UK Trade and Investment Programme,12/05/2011 ,Travel and Subsistence UK - International Trade Team Contracting,UK Trade & Investment - Regional Directorate,SGB ASSOCIATES,147346, 391.02 
UK Trade and Investment Programme,UK Trade and Investment Programme,12/05/2011 ,Event Management - Inward Investment Events,UK Trade & Investment - Business Group,FOREIGN AND COMMONWEALTH OFFICE (FCO),146239," 1,383.15 "
UK Trade and Investment Programme,UK Trade and Investment Programme,12/05/2011 ,Event Management - Inward Investment Events,UK Trade & Investment - Business Group,FOREIGN AND COMMONWEALTH OFFICE (FCO),146240, 136.27 
UK Trade and Investment Programme,UK Trade and Investment Programme,12/05/2011 ,Event Management - Inward Investment Events,UK Trade & Investment - Business Group,FOREIGN AND COMMONWEALTH OFFICE (FCO),146332, 670.91 
UK Trade and Investment Programme,UK Trade and Investment Programme,12/05/2011 ,Authoring and Copywriting Costs - Inward Investment Publications,UK Trade & Investment - Marketing & Communications Group,OCO GLOBAL LTD,147350," 3,000.00 "
UK Trade and Investment Programme,UK Trade and Investment Programme,12/05/2011 ,Authoring and Copywriting Costs - Inward Investment Publicity,UK Trade & Investment - Marketing & Communications Group,FOREIGN AND COMMONWEALTH OFFICE (FCO),146201, 391.05 
UK Trade and Investment Programme,UK Trade and Investment Programme,12/05/2011 ,Event Management - Inward Investment Publicity,UK Trade & Investment - Marketing & Communications Group,FOREIGN AND COMMONWEALTH OFFICE (FCO),146134, 412.21 
UK Trade and Investment Programme,UK Trade and Investment Programme,12/05/2011 ,Event Management - Inward Investment Publicity,UK Trade & Investment - Marketing & Communications Group,FOREIGN AND COMMONWEALTH OFFICE (FCO),146135, 666.94 
UK Trade and Investment Programme,UK Trade and Investment Programme,12/05/2011 ,Event Management - Inward Investment Publicity,UK Trade & Investment - Marketing & Communications Group,FOREIGN AND COMMONWEALTH OFFICE (FCO),146136, (19.90)
UK Trade and Investment Programme,UK Trade and Investment Programme,12/05/2011 ,Event Management - Inward Investment Publicity,UK Trade & Investment - Marketing & Communications Group,FOREIGN AND COMMONWEALTH OFFICE (FCO),146137, 44.75 
UK Trade and Investment Programme,UK Trade and Investment Programme,12/05/2011 ,Event Management - Inward Investment Publicity,UK Trade & Investment - Marketing & Communications Group,FOREIGN AND COMMONWEALTH OFFICE (FCO),146138, 75.29 
UK Trade and Investment Programme,UK Trade and Investment Programme,12/05/2011 ,Event Management - Inward Investment Publicity,UK Trade & Investment - Marketing & Communications Group,FOREIGN AND COMMONWEALTH OFFICE (FCO),146139, 97.38 
UK Trade and Investment Programme,UK Trade and Investment Programme,12/05/2011 ,Event Management - Inward Investment Publicity,UK Trade & Investment - Marketing & Communications Group,FOREIGN AND COMMONWEALTH OFFICE (FCO),146140, 38.06 
UK Trade and Investment Programme,UK Trade and Investment Programme,12/05/2011 ,Event Management - Inward Investment Publicity,UK Trade & Investment - Marketing & Communications Group,FOREIGN AND COMMONWEALTH OFFICE (FCO),146141, 195.64 
UK Trade and Investment Programme,UK Trade and Investment Programme,12/05/2011 ,Event Management - Inward Investment Publicity,UK Trade & Investment - Marketing & Communications Group,FOREIGN AND COMMONWEALTH OFFICE (FCO),146193, 394.36 
UK Trade and Investment Programme,UK Trade and Investment Programme,12/05/2011 ,Event Management - Inward Investment Publicity,UK Trade & Investment - Marketing & Communications Group,FOREIGN AND COMMONWEALTH OFFICE (FCO),146194, 344.17 
UK Trade and Investment Programme,UK Trade and Investment Programme,12/05/2011 ,Event Management - Inward Investment Publicity,UK Trade & Investment - Marketing & Communications Group,FOREIGN AND COMMONWEALTH OFFICE (FCO),146204, 40.23 
UK Trade and Investment Programme,UK Trade and Investment Programme,12/05/2011 ,Event Management - Inward Investment Publicity,UK Trade & Investment - Marketing & Communications Group,FOREIGN AND COMMONWEALTH OFFICE (FCO),146207, 119.76 
UK Trade and Investment Programme,UK Trade and Investment Programme,12/05/2011 ,Event Management - Inward Investment Publicity,UK Trade & Investment - Marketing & Communications Group,FOREIGN AND COMMONWEALTH OFFICE (FCO),146213," 8,981.68 "
UK Trade and Investment Programme,UK Trade and Investment Programme,12/05/2011 ,Event Management - Inward Investment Publicity,UK Trade & Investment - Marketing & Communications Group,FOREIGN AND COMMONWEALTH OFFICE (FCO),146214," 2,834.22 "
UK Trade and Investment Programme,UK Trade and Investment Programme,12/05/2011 ,Event Management - Inward Investment Publicity,UK Trade & Investment - Marketing & Communications Group,FOREIGN AND COMMONWEALTH OFFICE (FCO),146215, 862.24 
UK Trade and Investment Programme,UK Trade and Investment Programme,12/05/2011 ,Event Management - Inward Investment Publicity,UK Trade & Investment - Marketing & Communications Group,FOREIGN AND COMMONWEALTH OFFICE (FCO),146238, 756.73 
UK Trade and Investment Programme,UK Trade and Investment Programme,12/05/2011 ,Event Management - Inward Investment Publicity,UK Trade & Investment - Marketing & Communications Group,FOREIGN AND COMMONWEALTH OFFICE (FCO),146247," 1,482.59 "
UK Trade and Investment Programme,UK Trade and Investment Programme,12/05/2011 ,Event Management - Inward Investment Publicity,UK Trade & Investment - Marketing & Communications Group,FOREIGN AND COMMONWEALTH OFFICE (FCO),146257, 69.19 
UK Trade and Investment Programme,UK Trade and Investment Programme,12/05/2011 ,Event Management - Inward Investment Publicity,UK Trade & Investment - Marketing & Communications Group,FOREIGN AND COMMONWEALTH OFFICE (FCO),146266, 57.50 
UK Trade and Investment Programme,UK Trade and Investment Programme,12/05/2011 ,Event Management - Inward Investment Publicity,UK Trade & Investment - Marketing & Communications Group,FOREIGN AND COMMONWEALTH OFFICE (FCO),146266, (57.50)
UK Trade and Investment Programme,UK Trade and Investment Programme,12/05/2011 ,Event Management - Inward Investment Publicity,UK Trade & Investment - Marketing & Communications Group,FOREIGN AND COMMONWEALTH OFFICE (FCO),146266, 57.50 
UK Trade and Investment Programme,UK Trade and Investment Programme,12/05/2011 ,Event Management - Inward Investment Publicity,UK Trade & Investment - Marketing & Communications Group,FOREIGN AND COMMONWEALTH OFFICE (FCO),146267, 17.89 
UK Trade and Investment Programme,UK Trade and Investment Programme,12/05/2011 ,Event Management - Inward Investment Publicity,UK Trade & Investment - Marketing & Communications Group,FOREIGN AND COMMONWEALTH OFFICE (FCO),146267, (17.89)
UK Trade and Investment Programme,UK Trade and Investment Programme,12/05/2011 ,Event Management - Inward Investment Publicity,UK Trade & Investment - Marketing & Communications Group,FOREIGN AND COMMONWEALTH OFFICE (FCO),146267, 17.89 
UK Trade and Investment Programme,UK Trade and Investment Programme,12/05/2011 ,Event Management - Inward Investment Publicity,UK Trade & Investment - Marketing & Communications Group,FOREIGN AND COMMONWEALTH OFFICE (FCO),146268, 758.22 
UK Trade and Investment Programme,UK Trade and Investment Programme,12/05/2011 ,Event Management - Inward Investment Publicity,UK Trade & Investment - Marketing & Communications Group,FOREIGN AND COMMONWEALTH OFFICE (FCO),146269, 342.56 
UK Trade and Investment Programme,UK Trade and Investment Programme,12/05/2011 ,Event Management - Inward Investment Publicity,UK Trade & Investment - Marketing & Communications Group,FOREIGN AND COMMONWEALTH OFFICE (FCO),146270, 199.82 
UK Trade and Investment Programme,UK Trade and Investment Programme,12/05/2011 ,Event Management - Inward Investment Publicity,UK Trade & Investment - Marketing & Communications Group,FOREIGN AND COMMONWEALTH OFFICE (FCO),146275," 1,015.11 "
UK Trade and Investment Programme,UK Trade and Investment Programme,12/05/2011 ,Event Management - Inward Investment Publicity,UK Trade & Investment - Marketing & Communications Group,FOREIGN AND COMMONWEALTH OFFICE (FCO),146277, 652.97 
UK Trade and Investment Programme,UK Trade and Investment Programme,12/05/2011 ,Event Management - Inward Investment Publicity,UK Trade & Investment - Marketing & Communications Group,FOREIGN AND COMMONWEALTH OFFICE (FCO),146279, 151.11 
UK Trade and Investment Programme,UK Trade and Investment Programme,12/05/2011 ,Event Management - Inward Investment Publicity,UK Trade & Investment - Marketing & Communications Group,FOREIGN AND COMMONWEALTH OFFICE (FCO),146290, 336.32 
UK Trade and Investment Programme,UK Trade and Investment Programme,12/05/2011 ,Event Management - Inward Investment Publicity,UK Trade & Investment - Marketing & Communications Group,FOREIGN AND COMMONWEALTH OFFICE (FCO),146294, 83.86 
UK Trade and Investment Programme,UK Trade and Investment Programme,12/05/2011 ,Event Management - Inward Investment Publicity,UK Trade & Investment - Marketing & Communications Group,FOREIGN AND COMMONWEALTH OFFICE (FCO),146295, 110.00 
UK Trade and Investment Programme,UK Trade and Investment Programme,12/05/2011 ,Event Management - Inward Investment Publicity,UK Trade & Investment - Marketing & Communications Group,FOREIGN AND COMMONWEALTH OFFICE (FCO),146296, 110.00 
UK Trade and Investment Programme,UK Trade and Investment Programme,12/05/2011 ,Event Management - Inward Investment Publicity,UK Trade & Investment - Marketing & Communications Group,FOREIGN AND COMMONWEALTH OFFICE (FCO),146297, 154.01 
UK Trade and Investment Programme,UK Trade and Investment Programme,12/05/2011 ,Event Management - Inward Investment Publicity,UK Trade & Investment - Marketing & Communications Group,FOREIGN AND COMMONWEALTH OFFICE (FCO),146298, 169.14 
UK Trade and Investment Programme,UK Trade and Investment Programme,12/05/2011 ,Event Management - Inward Investment Publicity,UK Trade & Investment - Marketing & Communications Group,FOREIGN AND COMMONWEALTH OFFICE (FCO),146298, (169.14)
UK Trade and Investment Programme,UK Trade and Investment Programme,12/05/2011 ,Event Management - Inward Investment Publicity,UK Trade & Investment - Marketing & Communications Group,FOREIGN AND COMMONWEALTH OFFICE (FCO),146298, 169.41 
UK Trade and Investment Programme,UK Trade and Investment Programme,12/05/2011 ,Event Management - Inward Investment Publicity,UK Trade & Investment - Marketing & Communications Group,FOREIGN AND COMMONWEALTH OFFICE (FCO),146299, 78.71 
UK Trade and Investment Programme,UK Trade and Investment Programme,12/05/2011 ,Event Management - Inward Investment Publicity,UK Trade & Investment - Marketing & Communications Group,FOREIGN AND COMMONWEALTH OFFICE (FCO),146300, 175.55 
UK Trade and Investment Programme,UK Trade and Investment Programme,12/05/2011 ,Event Management - Inward Investment Publicity,UK Trade & Investment - Marketing & Communications Group,FOREIGN AND COMMONWEALTH OFFICE (FCO),146301, 456.87 
UK Trade and Investment Programme,UK Trade and Investment Programme,12/05/2011 ,Event Management - Inward Investment Publicity,UK Trade & Investment - Marketing & Communications Group,FOREIGN AND COMMONWEALTH OFFICE (FCO),146302, 152.69 
UK Trade and Investment Programme,UK Trade and Investment Programme,12/05/2011 ,Event Management - Inward Investment Publicity,UK Trade & Investment - Marketing & Communications Group,FOREIGN AND COMMONWEALTH OFFICE (FCO),146308, (320.76)
UK Trade and Investment Programme,UK Trade and Investment Programme,12/05/2011 ,Event Management - Inward Investment Publicity,UK Trade & Investment - Marketing & Communications Group,FOREIGN AND COMMONWEALTH OFFICE (FCO),146308, 320.76 
UK Trade and Investment Programme,UK Trade and Investment Programme,12/05/2011 ,Event Management - Inward Investment Publicity,UK Trade & Investment - Marketing & Communications Group,FOREIGN AND COMMONWEALTH OFFICE (FCO),146311, 375.00 
UK Trade and Investment Programme,UK Trade and Investment Programme,12/05/2011 ,Event Management - Inward Investment Publicity,UK Trade & Investment - Marketing & Communications Group,FOREIGN AND COMMONWEALTH OFFICE (FCO),146311, (375.00)
UK Trade and Investment Programme,UK Trade and Investment Programme,12/05/2011 ,Event Management - Inward Investment Publicity,UK Trade & Investment - Marketing & Communications Group,FOREIGN AND COMMONWEALTH OFFICE (FCO),146319, 750.00 
UK Trade and Investment Programme,UK Trade and Investment Programme,12/05/2011 ,Event Management - Inward Investment Publicity,UK Trade & Investment - Marketing & Communications Group,FOREIGN AND COMMONWEALTH OFFICE (FCO),146321, 25.31 
UK Trade and Investment Programme,UK Trade and Investment Programme,12/05/2011 ,Event Management - Inward Investment Publicity,UK Trade & Investment - Marketing & Communications Group,FOREIGN AND COMMONWEALTH OFFICE (FCO),146322, 351.56 
UK Trade and Investment Programme,UK Trade and Investment Programme,12/05/2011 ,Event Management - Inward Investment Publicity,UK Trade & Investment - Marketing & Communications Group,FOREIGN AND COMMONWEALTH OFFICE (FCO),146322, 10.00 
UK Trade and Investment Programme,UK Trade and Investment Programme,12/05/2011 ,Event Management - Inward Investment Publicity,UK Trade & Investment - Marketing & Communications Group,FOREIGN AND COMMONWEALTH OFFICE (FCO),146329, 128.56 
UK Trade and Investment Programme,UK Trade and Investment Programme,12/05/2011 ,Event Management - Inward Investment Publicity,UK Trade & Investment - Marketing & Communications Group,FOREIGN AND COMMONWEALTH OFFICE (FCO),146331, 112.23 
UK Trade and Investment Programme,UK Trade and Investment Programme,12/05/2011 ,Event Management - Inward Investment Publicity,UK Trade & Investment - Marketing & Communications Group,FOREIGN AND COMMONWEALTH OFFICE (FCO),146341," 1,503.58 "
UK Trade and Investment Programme,UK Trade and Investment Programme,12/05/2011 ,Event Management - Inward Investment Publicity,UK Trade & Investment - Marketing & Communications Group,FOREIGN AND COMMONWEALTH OFFICE (FCO),146341," (1,503.58)"
UK Trade and Investment Programme,UK Trade and Investment Programme,12/05/2011 ,Event Management - Inward Investment Publicity,UK Trade & Investment - Marketing & Communications Group,FOREIGN AND COMMONWEALTH OFFICE (FCO),146341," 1,503.58 "
UK Trade and Investment Programme,UK Trade and Investment Programme,12/05/2011 ,Event Management - Inward Investment Publicity,UK Trade & Investment - Marketing & Communications Group,FOREIGN AND COMMONWEALTH OFFICE (FCO),146342, 86.18 
UK Trade and Investment Programme,UK Trade and Investment Programme,12/05/2011 ,Event Management - Inward Investment Publicity,UK Trade & Investment - Marketing & Communications Group,FOREIGN AND COMMONWEALTH OFFICE (FCO),146345," 2,488.80 "
UK Trade and Investment Programme,UK Trade and Investment Programme,12/05/2011 ,Event Management - Inward Investment Publicity,UK Trade & Investment - Marketing & Communications Group,FOREIGN AND COMMONWEALTH OFFICE (FCO),146346," 2,545.20 "
UK Trade and Investment Programme,UK Trade and Investment Programme,12/05/2011 ,Event Management - Inward Investment Publicity,UK Trade & Investment - Marketing & Communications Group,FOREIGN AND COMMONWEALTH OFFICE (FCO),146347," 6,222.00 "
UK Trade and Investment Programme,UK Trade and Investment Programme,12/05/2011 ,Event Management - Inward Investment Publicity,UK Trade & Investment - Marketing & Communications Group,FOREIGN AND COMMONWEALTH OFFICE (FCO),146348," 3,111.00 "
UK Trade and Investment Programme,UK Trade and Investment Programme,12/05/2011 ,Event Management - Inward Investment Publicity,UK Trade & Investment - Marketing & Communications Group,FOREIGN AND COMMONWEALTH OFFICE (FCO),146350," 3,111.00 "
UK Trade and Investment Programme,UK Trade and Investment Programme,12/05/2011 ,Event Management - Inward Investment Publicity,UK Trade & Investment - Marketing & Communications Group,FOREIGN AND COMMONWEALTH OFFICE (FCO),146353, 777.75 
UK Trade and Investment Programme,UK Trade and Investment Programme,12/05/2011 ,Event Management - Inward Investment Publicity,UK Trade & Investment - Marketing & Communications Group,FOREIGN AND COMMONWEALTH OFFICE (FCO),146354, 777.76 
UK Trade and Investment Programme,UK Trade and Investment Programme,12/05/2011 ,Event Management - Inward Investment Publicity,UK Trade & Investment - Marketing & Communications Group,FOREIGN AND COMMONWEALTH OFFICE (FCO),146355, 911.63 
UK Trade and Investment Programme,UK Trade and Investment Programme,12/05/2011 ,Event Management - Inward Investment Publicity,UK Trade & Investment - Marketing & Communications Group,FOREIGN AND COMMONWEALTH OFFICE (FCO),146356, 175.22 
UK Trade and Investment Programme,UK Trade and Investment Programme,12/05/2011 ,Event Management - Inward Investment Publicity,UK Trade & Investment - Marketing & Communications Group,FOREIGN AND COMMONWEALTH OFFICE (FCO),146357, 142.32 
UK Trade and Investment Programme,UK Trade and Investment Programme,12/05/2011 ,Event Management - Inward Investment Publicity,UK Trade & Investment - Marketing & Communications Group,FOREIGN AND COMMONWEALTH OFFICE (FCO),146358, 24.89 
UK Trade and Investment Programme,UK Trade and Investment Programme,12/05/2011 ,Event Management - Inward Investment Publicity,UK Trade & Investment - Marketing & Communications Group,FOREIGN AND COMMONWEALTH OFFICE (FCO),146360, 169.00 
UK Trade and Investment Programme,UK Trade and Investment Programme,12/05/2011 ,Event Management - Inward Investment Publicity,UK Trade & Investment - Marketing & Communications Group,FOREIGN AND COMMONWEALTH OFFICE (FCO),146360, (169.00)
UK Trade and Investment Programme,UK Trade and Investment Programme,12/05/2011 ,Event Management - Inward Investment Publicity,UK Trade & Investment - Marketing & Communications Group,FOREIGN AND COMMONWEALTH OFFICE (FCO),146360, 169.00 
UK Trade and Investment Programme,UK Trade and Investment Programme,12/05/2011 ,Event Management - Inward Investment Publicity,UK Trade & Investment - Marketing & Communications Group,FOREIGN AND COMMONWEALTH OFFICE (FCO),146361, 24.89 
UK Trade and Investment Programme,UK Trade and Investment Programme,12/05/2011 ,Event Management - Inward Investment Publicity,UK Trade & Investment - Marketing & Communications Group,FOREIGN AND COMMONWEALTH OFFICE (FCO),146362," 1,054.64 "
UK Trade and Investment Programme,UK Trade and Investment Programme,12/05/2011 ,Event Management - Inward Investment Publicity,UK Trade & Investment - Marketing & Communications Group,FOREIGN AND COMMONWEALTH OFFICE (FCO),146364, 120.18 
UK Trade and Investment Programme,UK Trade and Investment Programme,12/05/2011 ,Event Management - Inward Investment Publicity,UK Trade & Investment - Marketing & Communications Group,FOREIGN AND COMMONWEALTH OFFICE (FCO),146365, 335.99 
UK Trade and Investment Programme,UK Trade and Investment Programme,12/05/2011 ,Event Management - Inward Investment Publicity,UK Trade & Investment - Marketing & Communications Group,FOREIGN AND COMMONWEALTH OFFICE (FCO),146366, 516.43 
UK Trade and Investment Programme,UK Trade and Investment Programme,12/05/2011 ,Event Management - Inward Investment Publicity,UK Trade & Investment - Marketing & Communications Group,FOREIGN AND COMMONWEALTH OFFICE (FCO),146367, 24.89 
UK Trade and Investment Programme,UK Trade and Investment Programme,12/05/2011 ,Event Management - Inward Investment Publicity,UK Trade & Investment - Marketing & Communications Group,FOREIGN AND COMMONWEALTH OFFICE (FCO),146369, 933.28 
UK Trade and Investment Programme,UK Trade and Investment Programme,12/05/2011 ,Event Management - Inward Investment Publicity,UK Trade & Investment - Marketing & Communications Group,FOREIGN AND COMMONWEALTH OFFICE (FCO),146384, 391.05 
UK Trade and Investment Programme,UK Trade and Investment Programme,12/05/2011 ,Event Management - Inward Investment Publicity,UK Trade & Investment - Marketing & Communications Group,FOREIGN AND COMMONWEALTH OFFICE (FCO),146389, 880.90 
UK Trade and Investment Programme,UK Trade and Investment Programme,12/05/2011 ,Event Management - Inward Investment Publicity,UK Trade & Investment - Marketing & Communications Group,FOREIGN AND COMMONWEALTH OFFICE (FCO),146390," 1,455.73 "
UK Trade and Investment Programme,UK Trade and Investment Programme,12/05/2011 ,Event Management - Inward Investment Publicity,UK Trade & Investment - Marketing & Communications Group,FOREIGN AND COMMONWEALTH OFFICE (FCO),146392, 624.35 
UK Trade and Investment Programme,UK Trade and Investment Programme,12/05/2011 ,Event Management - Inward Investment Publicity,UK Trade & Investment - Marketing & Communications Group,FOREIGN AND COMMONWEALTH OFFICE (FCO),146394, 212.79 
UK Trade and Investment Programme,UK Trade and Investment Programme,12/05/2011 ,Event Management - Inward Investment Publicity,UK Trade & Investment - Marketing & Communications Group,FOREIGN AND COMMONWEALTH OFFICE (FCO),146396, 622.20 
UK Trade and Investment Programme,UK Trade and Investment Programme,12/05/2011 ,Event Management - Inward Investment Publicity,UK Trade & Investment - Marketing & Communications Group,FOREIGN AND COMMONWEALTH OFFICE (FCO),146396, (622.20)
UK Trade and Investment Programme,UK Trade and Investment Programme,12/05/2011 ,Event Management - Inward Investment Publicity,UK Trade & Investment - Marketing & Communications Group,FOREIGN AND COMMONWEALTH OFFICE (FCO),146396, 622.20 
UK Trade and Investment Programme,UK Trade and Investment Programme,12/05/2011 ,Event Management - Inward Investment Publicity,UK Trade & Investment - Marketing & Communications Group,FOREIGN AND COMMONWEALTH OFFICE (FCO),146397, 287.46 
UK Trade and Investment Programme,UK Trade and Investment Programme,12/05/2011 ,Event Management - Inward Investment Publicity,UK Trade & Investment - Marketing & Communications Group,FOREIGN AND COMMONWEALTH OFFICE (FCO),146398, 249.66 
UK Trade and Investment Programme,UK Trade and Investment Programme,12/05/2011 ,Event Management - Inward Investment Publicity,UK Trade & Investment - Marketing & Communications Group,FOREIGN AND COMMONWEALTH OFFICE (FCO),146399, 413.70 
UK Trade and Investment Programme,UK Trade and Investment Programme,12/05/2011 ,Event Management - Inward Investment Publicity,UK Trade & Investment - Marketing & Communications Group,FOREIGN AND COMMONWEALTH OFFICE (FCO),146400, 498.90 
UK Trade and Investment Programme,UK Trade and Investment Programme,12/05/2011 ,Event Management - Inward Investment Publicity,UK Trade & Investment - Marketing & Communications Group,FOREIGN AND COMMONWEALTH OFFICE (FCO),146401, 670.53 
UK Trade and Investment Programme,UK Trade and Investment Programme,12/05/2011 ,Event Management - Inward Investment Publicity,UK Trade & Investment - Marketing & Communications Group,FOREIGN AND COMMONWEALTH OFFICE (FCO),146402, 87.11 
UK Trade and Investment Programme,UK Trade and Investment Programme,12/05/2011 ,Event Management - Inward Investment Publicity,UK Trade & Investment - Marketing & Communications Group,FOREIGN AND COMMONWEALTH OFFICE (FCO),146403, 248.92 
UK Trade and Investment Programme,UK Trade and Investment Programme,12/05/2011 ,Event Management - Inward Investment Publicity,UK Trade & Investment - Marketing & Communications Group,FOREIGN AND COMMONWEALTH OFFICE (FCO),146404, 556.87 
UK Trade and Investment Programme,UK Trade and Investment Programme,12/05/2011 ,Event Management - Inward Investment Publicity,UK Trade & Investment - Marketing & Communications Group,FOREIGN AND COMMONWEALTH OFFICE (FCO),146405, 556.87 
UK Trade and Investment Programme,UK Trade and Investment Programme,12/05/2011 ,Event Management - Inward Investment Publicity,UK Trade & Investment - Marketing & Communications Group,FOREIGN AND COMMONWEALTH OFFICE (FCO),146418, 311.10 
UK Trade and Investment Programme,UK Trade and Investment Programme,12/05/2011 ,Event Management - Inward Investment Publicity,UK Trade & Investment - Marketing & Communications Group,FOREIGN AND COMMONWEALTH OFFICE (FCO),146419, 933.28 
UK Trade and Investment Programme,UK Trade and Investment Programme,12/05/2011 ,Event Management - Inward Investment Publicity,UK Trade & Investment - Marketing & Communications Group,FOREIGN AND COMMONWEALTH OFFICE (FCO),146421, 6.46 
UK Trade and Investment Programme,UK Trade and Investment Programme,12/05/2011 ,Event Management - Inward Investment Publicity,UK Trade & Investment - Marketing & Communications Group,FOREIGN AND COMMONWEALTH OFFICE (FCO),146422, 3.39 
UK Trade and Investment Programme,UK Trade and Investment Programme,12/05/2011 ,Event Management - Inward Investment Publicity,UK Trade & Investment - Marketing & Communications Group,FOREIGN AND COMMONWEALTH OFFICE (FCO),146423, 12.70 
UK Trade and Investment Programme,UK Trade and Investment Programme,12/05/2011 ,Event Management - Inward Investment Publicity,UK Trade & Investment - Marketing & Communications Group,FOREIGN AND COMMONWEALTH OFFICE (FCO),146424," 2,217.06 "
